Workbook

Sheet Introduction
D16: LTN | E16: Zero coupon bond
D17: NTN-F | E17: Fixed Rate Bond
D18: NTN-B | E18: Inflation linked (IPCA) fixed rate bond
D19: NTN-C | E19: Inflation linked (IGPM) fixed rate bond
D20: LFT | E20: Floating rate note (daily reset)
D22: Price Test from YTM | E22: Compares price from YTM against Anbima prices
D23: Price Test from Yield Curve | E23: Compares prices from zero curve against Anbima prices
D24: Yield Test From Anbima Price | E24: Compares implied yield from Anbima prices against Ambima yields
D25: Yield Test From Yield Curve | E25: Compares implied yield from zero curves (price from curve) against Ambima yields

Sheet LTN (Anbima)
A1: Títulos Públicos Federais | K1: 2011-11-11
A3: Papel PREFIXADO | C3: LTN - Taxa (% a.a.)/252
A4: Código SELIC | B4: Data Base/Emissão | C4: Data de Vencimento | D4: Tx. Máxima | E4: Tx. Mínima | F4: Tx. Indicativas | G4: PU | H4: Intervalo Indicativo
H5: Mínimo (D0) | I5: Máximo (D0) | J5: Mínimo (D+1) | K5: Máximo (D+1)
A6: 100000 | B6: 2011-01-14 | C6: 2012-04-01 | D6: 10.6347 | E6: 10.54 | F6: 10.5738 | G6: 961.66571 | H6: 10.2387 | I6: 10.737 | J6: 10.2579 | K6: 10.7556
A7: 100000 | B7: 2010-01-08 | C7: 2012-07-01 | D7: 10.32 | E7: 10.25 | F7: 10.294 | G7: 939.686372 | H7: 9.9898 | I7: 10.4661 | J7: 9.9959 | K7: 10.4733
A8: 100000 | B8: 2011-07-08 | C8: 2012-10-01 | D8: 10.1224 | E8: 10.1056 | F8: 10.1131 | G8: 917.930472 | H8: 9.8529 | I8: 10.269 | J8: 9.8561 | K8: 10.2722
A9: 100000 | B9: 2009-12-29 | C9: 2013-01-01 | D9: 10.07 | E9: 10.0385 | F9: 10.0476 | G9: 897.034913 | H9: 9.8082 | I9: 10.2367 | J9: 9.7762 | K9: 10.2041
A10: 100000 | B10: 2010-12-03 | C10: 2013-04-01 | D10: 10.18 | E10: 10.1145 | F10: 10.1217 | G10: 876.007518 | H10: 9.8623 | I10: 10.338 | J10: 9.8242 | K10: 10.2993
A11: 100000 | B11: 2011-03-04 | C11: 2013-07-01 | D11: 10.25 | E11: 10.1675 | F11: 10.2017 | G11: 854.13738 | H11: 9.9264 | I11: 10.436 | J11: 9.8875 | K11: 10.3968
A12: 100000 | B12: 2010-12-22 | C12: 2014-01-01 | D12: 10.49 | E12: 10.4069 | F12: 10.415 | G12: 809.035772 | H12: 10.126 | I12: 10.6788 | J12: 10.0737 | K12: 10.6264
A13: 100000 | B13: 2010-12-22 | C13: 2015-01-01 | D13: 10.92 | E13: 10.68 | F13: 10.7676 | G13: 725.132022 | H13: 10.4582 | I13: 11.0653 | J13: 10.4112 | K13: 11.0183
A14: Quando uma taxa for interpolada será apresentada em negrito.

Sheet LTN (QuantLibXL)
E2: Evaluation Date | F2: ='LTN (Anbima)'!K1 -> 2011-11-11
E3: Set Evaluation Date | F3: =_xll.qlSettingsSetEvaluationDate(F2) -> TRUE
E5: ZeroRateBond | F5: =_xll.qlZeroCouponBond(,F8,F9,F10,F16,F11,F12,F13,F14,F15) -> obj_000a4#0020 | G5: =_xll.qlZeroCouponBond(,G8,G9,G10,G16,G11,G12,G13,G14,G15) -> obj_000b2#0009 | H5: =_xll.qlZeroCouponBond(,H8,H9,H10,H16,H11,H12,H13,H14,H15) -> obj_000af#0009 | I5: =_xll.qlZeroCouponBond(,I8,I9,I10,I16,I11,I12,I13,I14,I15) -> obj_000a3#0009 | J5: =_xll.qlZeroCouponBond(,J8,J9,J10,J16,J11,J12,J13,J14,J15) -> obj_000a7#0009 | K5: =_xll.qlZeroCouponBond(,K8,K9,K10,K16,K11,K12,K13,K14,K15) -> obj_000ac#0009 | L5: =_xll.qlZeroCouponBond(,L8,L9,L10,L16,L11,L12,L13,L14,L15) -> obj_000b3#0009 | M5: =_xll.qlZeroCouponBond(,M8,M9,M10,M16,M11,M12,M13,M14,M15) -> obj_000a6#0009
E6: Error | F6: =_xll.ohRangeRetrieveError(F5) ->  | G6: =_xll.ohRangeRetrieveError(G5) ->  | H6: =_xll.ohRangeRetrieveError(H5) ->  | I6: =_xll.ohRangeRetrieveError(I5) ->  | J6: =_xll.ohRangeRetrieveError(J5) ->  | K6: =_xll.ohRangeRetrieveError(K5) ->  | L6: =_xll.ohRangeRetrieveError(L5) ->  | M6: =_xll.ohRangeRetrieveError(M5) -> 
E7: ObjectID
E8: Description | F8: LTN | G8: LTN | H8: LTN | I8: LTN | J8: LTN | K8: LTN | L8: LTN | M8: LTN
E9: Currency | F9: BRL | G9: BRL | H9: BRL | I9: BRL | J9: BRL | K9: BRL | L9: BRL | M9: BRL
E10: SettlementDays | F10: 0 | G10: 0 | H10: 0 | I10: 0 | J10: 0 | K10: 0 | L10: 0 | M10: 0
E11: FaceAmount | F11: 1000 | G11: 1000 | H11: 1000 | I11: 1000 | J11: 1000 | K11: 1000 | L11: 1000 | M11: 1000
E12: TerminationDate | F12: =TRANSPOSE('LTN (Anbima)'!$C$6:$C$13) -> 2012-04-01 | G12: 2012-07-01 | H12: 2012-10-01 | I12: 2013-01-01 | J12: 2013-04-01 | K12: 2013-07-01 | L12: 2014-01-01 | M12: 2015-01-01
E13: PaymentBDC | F13: Following | G13: Following | H13: Following | I13: Following | J13: Following | K13: Following | L13: Following | M13: Following
E14: Redemption | F14: 100 | G14: 100 | H14: 100 | I14: 100 | J14: 100 | K14: 100 | L14: 100 | M14: 100
E15: IssueDate | F15: =TRANSPOSE('LTN (Anbima)'!$B$6:$B$13) -> 2011-01-14 | G15: 2010-01-08 | H15: 2011-07-08 | I15: 2009-12-29 | J15: 2010-12-03 | K15: 2011-03-04 | L15: 2010-12-22 | M15: 2010-12-22
E16: Calendar | F16: Brazil::Settlement | G16: Brazil::Settlement | H16: Brazil::Settlement | I16: Brazil::Settlement | J16: Brazil::Settlement | K16: Brazil::Settlement | L16: Brazil::Settlement | M16: Brazil::Settlement
E17: Permanent
E19: Rate | F19: =TRANSPOSE('LTN (Anbima)'!$F$6:$F$13)/100 -> 0.105738 | G19: 0.10294 | H19: 0.101131 | I19: 0.100476 | J19: 0.101217 | K19: 0.102017 | L19: 0.10415 | M19: 0.107676
E20: DayCounter | F20: Business252 | G20: Business252 | H20: Business252 | I20: Business252 | J20: Business252 | K20: Business252 | L20: Business252 | M20: Business252
E21: Compounding | F21: Compounded | G21: Compounded | H21: Compounded | I21: Compounded | J21: Compounded | K21: Compounded | L21: Compounded | M21: Compounded
E22: Frequency | F22: Annual | G22: Annual | H22: Annual | I22: Annual | J22: Annual | K22: Annual | L22: Annual | M22: Annual
E24: Clean Price | F24: =_xll.qlBondCleanPriceFromYield(F5,F19,F20,F21,F22,$F$2) -> 96.16657103 | G24: =_xll.qlBondCleanPriceFromYield(G5,G19,G20,G21,G22,$F$2) -> 93.96863723 | H24: =_xll.qlBondCleanPriceFromYield(H5,H19,H20,H21,H22,$F$2) -> 91.79304721 | I24: =_xll.qlBondCleanPriceFromYield(I5,I19,I20,I21,I22,$F$2) -> 89.70349139 | J24: =_xll.qlBondCleanPriceFromYield(J5,J19,J20,J21,J22,$F$2) -> 87.60075189 | K24: =_xll.qlBondCleanPriceFromYield(K5,K19,K20,K21,K22,$F$2) -> 85.4137381 | L24: =_xll.qlBondCleanPriceFromYield(L5,L19,L20,L21,L22,$F$2) -> 80.9035772 | M24: =_xll.qlBondCleanPriceFromYield(M5,M19,M20,M21,M22,$F$2) -> 72.5132022
E25: BondHelper | F25: =_xll.qlBondHelper(,F24,F5) -> obj_000b6#0015 | G25: =_xll.qlBondHelper(,G24,G5) -> obj_000c3#0012 | H25: =_xll.qlBondHelper(,H24,H5) -> obj_000c0#0012 | I25: =_xll.qlBondHelper(,I24,I5) -> obj_000b5#0012 | J25: =_xll.qlBondHelper(,J24,J5) -> obj_000b9#0012 | K25: =_xll.qlBondHelper(,K24,K5) -> obj_000bd#0012 | L25: =_xll.qlBondHelper(,L24,L5) -> obj_000c4#0012 | M25: =_xll.qlBondHelper(,M24,M5) -> obj_000b8#0012
E27: Yield Curve | F27: =_xll.qlPiecewiseYieldCurve(,,F29,F25:M25,F30,,,,F31,F32) -> obj_000c5#0011
E28: Error | F28: =_xll.ohRangeRetrieveError(F27) -> 
E29: Calendar | F29: Brazil::Settlement
E30: DayCounter | F30: Business252
F31: Discount
E32: Interpolator | F32: LogLinear
E34: DayCounter | F34: Business252
E35: Compounding | F35: Compounded
E36: Frequency | F36: Annual
E37: =_xll.qlPiecewiseYieldCurveDates(F27) -> 2011-11-11 | F37: =_xll.qlYieldTSZeroRate($F$27,E37,$F$34,$F$35,$F$36) -> 0.105738
E38: 2012-04-02 | F38: =_xll.qlYieldTSZeroRate($F$27,E38,$F$34,$F$35,$F$36) -> 0.105738
E39: 2012-07-02 | F39: =_xll.qlYieldTSZeroRate($F$27,E39,$F$34,$F$35,$F$36) -> 0.10294
E40: 2012-10-01 | F40: =_xll.qlYieldTSZeroRate($F$27,E40,$F$34,$F$35,$F$36) -> 0.101131
E41: 2013-01-02 | F41: =_xll.qlYieldTSZeroRate($F$27,E41,$F$34,$F$35,$F$36) -> 0.100476
E42: 2013-04-01 | F42: =_xll.qlYieldTSZeroRate($F$27,E42,$F$34,$F$35,$F$36) -> 0.101217
E43: 2013-07-01 | F43: =_xll.qlYieldTSZeroRate($F$27,E43,$F$34,$F$35,$F$36) -> 0.102017
E44: 2014-01-02 | F44: =_xll.qlYieldTSZeroRate($F$27,E44,$F$34,$F$35,$F$36) -> 0.10415
E45: 2015-01-02 | F45: =_xll.qlYieldTSZeroRate($F$27,E45,$F$34,$F$35,$F$36) -> 0.107676
F46: =_xll.qlYieldTSZeroRate($F$27,E46,$F$34,$F$35,$F$36) -> 
F47: =_xll.qlYieldTSZeroRate($F$27,E47,$F$34,$F$35,$F$36) -> 
F48: =_xll.qlYieldTSZeroRate($F$27,E48,$F$34,$F$35,$F$36) -> 
F49: =_xll.qlYieldTSZeroRate($F$27,E49,$F$34,$F$35,$F$36) -> 
F50: =_xll.qlYieldTSZeroRate($F$27,E50,$F$34,$F$35,$F$36) -> 
F51: =_xll.qlYieldTSZeroRate($F$27,E51,$F$34,$F$35,$F$36) -> 
F52: =_xll.qlYieldTSZeroRate($F$27,E52,$F$34,$F$35,$F$36) -> 
F53: =_xll.qlYieldTSZeroRate($F$27,E53,$F$34,$F$35,$F$36) -> 
F54: =_xll.qlYieldTSZeroRate($F$27,E54,$F$34,$F$35,$F$36) -> 
F55: =_xll.qlYieldTSZeroRate($F$27,E55,$F$34,$F$35,$F$36) -> 
B57: Price Test from YTM | E57: Yield | F57: =TRANSPOSE('LTN (Anbima)'!$F$6:$F$13)/100 -> 0.105738 | G57: 0.10294 | H57: 0.101131 | I57: 0.100476 | J57: 0.101217 | K57: 0.102017 | L57: 0.10415 | M57: 0.107676
E58: Clean Price | F58: =_xll.qlBondCleanPriceFromYield(F5,F19,F20,F21,F22,$F$2) -> 96.16657103 | G58: =_xll.qlBondCleanPriceFromYield(G5,G19,G20,G21,G22,$F$2) -> 93.96863723 | H58: =_xll.qlBondCleanPriceFromYield(H5,H19,H20,H21,H22,$F$2) -> 91.79304721 | I58: =_xll.qlBondCleanPriceFromYield(I5,I19,I20,I21,I22,$F$2) -> 89.70349139 | J58: =_xll.qlBondCleanPriceFromYield(J5,J19,J20,J21,J22,$F$2) -> 87.60075189 | K58: =_xll.qlBondCleanPriceFromYield(K5,K19,K20,K21,K22,$F$2) -> 85.4137381 | L58: =_xll.qlBondCleanPriceFromYield(L5,L19,L20,L21,L22,$F$2) -> 80.9035772 | M58: =_xll.qlBondCleanPriceFromYield(M5,M19,M20,M21,M22,$F$2) -> 72.5132022
E59: Accrued Amount | F59: =_xll.qlBondAccruedAmount(F$5) -> 0 | G59: =_xll.qlBondAccruedAmount(G5) -> 0 | H59: =_xll.qlBondAccruedAmount(H5) -> 0 | I59: =_xll.qlBondAccruedAmount(I5) -> 0 | J59: =_xll.qlBondAccruedAmount(J5) -> 0 | K59: =_xll.qlBondAccruedAmount(K5) -> 0 | L59: =_xll.qlBondAccruedAmount(L5) -> 0 | M59: =_xll.qlBondAccruedAmount(M5) -> 0
E60: Anbima | F60: =TRANSPOSE('LTN (Anbima)'!$G$6:$G$13) -> 961.66571 | G60: 939.686372 | H60: 917.930472 | I60: 897.034913 | J60: 876.007518 | K60: 854.13738 | L60: 809.035772 | M60: 725.132022
E61: QuantLibXL | F61: =(F58+F59)*(_xll.qlBondNotional(F$5)/100) -> 961.6657103 | G61: =(G58+G59)*(_xll.qlBondNotional(G$5)/100) -> 939.6863723 | H61: =(H58+H59)*(_xll.qlBondNotional(H$5)/100) -> 917.9304721 | I61: =(I58+I59)*(_xll.qlBondNotional(I$5)/100) -> 897.0349139 | J61: =(J58+J59)*(_xll.qlBondNotional(J$5)/100) -> 876.0075189 | K61: =(K58+K59)*(_xll.qlBondNotional(K$5)/100) -> 854.137381 | L61: =(L58+L59)*(_xll.qlBondNotional(L$5)/100) -> 809.035772 | M61: =(M58+M59)*(_xll.qlBondNotional(M$5)/100) -> 725.132022
E62: Test | F62: =F61-F60 -> 3.073532753e-07 | G62: 3.4042273e-07 | H62: 9.010818758e-08 | I62: 9.486963108e-07 | J62: 8.932084938e-07 | K62: 9.857134273e-07 | L62: 4.2013653e-08 | M62: 4.041930879e-08
B64: Price Test from Yield Curve | E64: Clean Price | F64: =_xll.qlBondCleanPriceFromYieldTermStructure(F5,$F$27,$F$2) -> 96.16657103 | G64: =_xll.qlBondCleanPriceFromYieldTermStructure(G5,$F$27,$F$2) -> 93.96863723 | H64: =_xll.qlBondCleanPriceFromYieldTermStructure(H5,$F$27,$F$2) -> 91.79304721 | I64: =_xll.qlBondCleanPriceFromYieldTermStructure(I5,$F$27,$F$2) -> 89.70349139 | J64: =_xll.qlBondCleanPriceFromYieldTermStructure(J5,$F$27,$F$2) -> 87.60075189 | K64: =_xll.qlBondCleanPriceFromYieldTermStructure(K5,$F$27,$F$2) -> 85.4137381 | L64: =_xll.qlBondCleanPriceFromYieldTermStructure(L5,$F$27,$F$2) -> 80.9035772 | M64: =_xll.qlBondCleanPriceFromYieldTermStructure(M5,$F$27,$F$2) -> 72.5132022
E65: Accrued Amount | F65: =_xll.qlBondAccruedAmount(F5) -> 0 | G65: =_xll.qlBondAccruedAmount(G5) -> 0 | H65: =_xll.qlBondAccruedAmount(H5) -> 0 | I65: =_xll.qlBondAccruedAmount(I5) -> 0 | J65: =_xll.qlBondAccruedAmount(J5) -> 0 | K65: =_xll.qlBondAccruedAmount(K5) -> 0 | L65: =_xll.qlBondAccruedAmount(L5) -> 0 | M65: =_xll.qlBondAccruedAmount(M5) -> 0
E66: Anbima | F66: =TRANSPOSE('LTN (Anbima)'!$G$6:$G$13) -> 961.66571 | G66: 939.686372 | H66: 917.930472 | I66: 897.034913 | J66: 876.007518 | K66: 854.13738 | L66: 809.035772 | M66: 725.132022
E67: QuantLibXL | F67: =(F64+F65)*(_xll.qlBondNotional(F$5)/100) -> 961.6657103 | G67: =(G64+G65)*(_xll.qlBondNotional(G$5)/100) -> 939.6863723 | H67: =(H64+H65)*(_xll.qlBondNotional(H$5)/100) -> 917.9304721 | I67: =(I64+I65)*(_xll.qlBondNotional(I$5)/100) -> 897.0349139 | J67: =(J64+J65)*(_xll.qlBondNotional(J$5)/100) -> 876.0075189 | K67: =(K64+K65)*(_xll.qlBondNotional(K$5)/100) -> 854.137381 | L67: =(L64+L65)*(_xll.qlBondNotional(L$5)/100) -> 809.035772 | M67: =(M64+M65)*(_xll.qlBondNotional(M$5)/100) -> 725.132022
E68: Test | F68: =F67-F66 -> 3.078534974e-07 | G68: 3.409230658e-07 | H68: 9.010818758e-08 | I68: 9.486963108e-07 | J68: 8.932084938e-07 | K68: 9.857134273e-07 | L68: 4.2013653e-08 | M68: 4.041930879e-08
B70: Yield Test From Anbima Price | E70: Anbima | F70: =TRANSPOSE('LTN (Anbima)'!$G$6:$G$13) -> 961.66571 | G70: 939.686372 | H70: 917.930472 | I70: 897.034913 | J70: 876.007518 | K70: 854.13738 | L70: 809.035772 | M70: 725.132022
E71: Accrued Amount | F71: =_xll.qlBondAccruedAmount(F$5) -> 0 | G71: =_xll.qlBondAccruedAmount(G$5) -> 0 | H71: =_xll.qlBondAccruedAmount(H$5) -> 0 | I71: =_xll.qlBondAccruedAmount(I$5) -> 0 | J71: =_xll.qlBondAccruedAmount(J$5) -> 0 | K71: =_xll.qlBondAccruedAmount(K$5) -> 0 | L71: =_xll.qlBondAccruedAmount(L$5) -> 0 | M71: =_xll.qlBondAccruedAmount(M$5) -> 0
E72: Clean Price | F72: =F70/(_xll.qlBondNotional(F5)/100)-F71 -> 96.166571 | G72: =G70/(_xll.qlBondNotional(G5)/100)-G71 -> 93.9686372 | H72: =H70/(_xll.qlBondNotional(H5)/100)-H71 -> 91.7930472 | I72: =I70/(_xll.qlBondNotional(I5)/100)-I71 -> 89.7034913 | J72: =J70/(_xll.qlBondNotional(J5)/100)-J71 -> 87.6007518 | K72: =K70/(_xll.qlBondNotional(K5)/100)-K71 -> 85.413738 | L72: =L70/(_xll.qlBondNotional(L5)/100)-L71 -> 80.9035772 | M72: =M70/(_xll.qlBondNotional(M5)/100)-M71 -> 72.5132022
E73: Yield | F73: =TRANSPOSE('LTN (Anbima)'!$F$6:$F$13)/100 -> 0.105738 | G73: 0.10294 | H73: 0.101131 | I73: 0.100476 | J73: 0.101217 | K73: 0.102017 | L73: 0.10415 | M73: 0.107676
E74: QuantLibXL | F74: =_xll.qlBondYieldFromCleanPrice(F5,F72,F20,F21,F22,$F$2) -> 0.1057380009 | G74: =_xll.qlBondYieldFromCleanPrice(G5,G72,G20,G21,G22,$F$2) -> 0.1029400006 | H74: =_xll.qlBondYieldFromCleanPrice(H5,H72,H20,H21,H22,$F$2) -> 0.1011310002 | I74: =_xll.qlBondYieldFromCleanPrice(I5,I72,I20,I21,I22,$F$2) -> 0.1004760011 | J74: =_xll.qlBondYieldFromCleanPrice(J5,J72,J20,J21,J22,$F$2) -> 0.1012170009 | K74: =_xll.qlBondYieldFromCleanPrice(K5,K72,K20,K21,K22,$F$2) -> 0.1020170007 | L74: =_xll.qlBondYieldFromCleanPrice(L5,L72,L20,L21,L22,$F$2) -> 0.10415 | M74: =_xll.qlBondYieldFromCleanPrice(M5,M72,M20,M21,M22,$F$2) -> 0.107676
E75: Test | F75: =F74-F73 -> 9.099468817e-10 | G75: 5.51752713e-10 | H75: 2.004727079e-10 | I75: 1.081205903e-09 | J75: 8.9853254e-10 | K75: 7.0749967e-10 | L75: 4.183502156e-11 | M75: 1.666695948e-11
B77: Yield Test From Yield Curve | E77: Clean Price | F77: =_xll.qlBondCleanPriceFromYieldTermStructure(F5,$F$27,$F$2) -> 96.16657103 | G77: =_xll.qlBondCleanPriceFromYieldTermStructure(G5,$F$27,$F$2) -> 93.96863723 | H77: =_xll.qlBondCleanPriceFromYieldTermStructure(H5,$F$27,$F$2) -> 91.79304721 | I77: =_xll.qlBondCleanPriceFromYieldTermStructure(I5,$F$27,$F$2) -> 89.70349139 | J77: =_xll.qlBondCleanPriceFromYieldTermStructure(J5,$F$27,$F$2) -> 87.60075189 | K77: =_xll.qlBondCleanPriceFromYieldTermStructure(K5,$F$27,$F$2) -> 85.4137381 | L77: =_xll.qlBondCleanPriceFromYieldTermStructure(L5,$F$27,$F$2) -> 80.9035772 | M77: =_xll.qlBondCleanPriceFromYieldTermStructure(M5,$F$27,$F$2) -> 72.5132022
E78: Yield | F78: =TRANSPOSE('LTN (Anbima)'!$F$6:$F$13)/100 -> 0.105738 | G78: 0.10294 | H78: 0.101131 | I78: 0.100476 | J78: 0.101217 | K78: 0.102017 | L78: 0.10415 | M78: 0.107676
E79: QuantLibXL | F79: =_xll.qlBondYieldFromCleanPrice(F5,F77,F20,F21,F22,$F$2) -> 0.1057379999 | G79: =_xll.qlBondYieldFromCleanPrice(G5,G77,G20,G21,G22,$F$2) -> 0.1029400001 | H79: =_xll.qlBondYieldFromCleanPrice(H5,H77,H20,H21,H22,$F$2) -> 0.101131 | I79: =_xll.qlBondYieldFromCleanPrice(I5,I77,I20,I21,I22,$F$2) -> 0.1004759999 | J79: =_xll.qlBondYieldFromCleanPrice(J5,J77,J20,J21,J22,$F$2) -> 0.1012170001 | K79: =_xll.qlBondYieldFromCleanPrice(K5,K77,K20,K21,K22,$F$2) -> 0.1020170001 | L79: =_xll.qlBondYieldFromCleanPrice(L5,L77,L20,L21,L22,$F$2) -> 0.10415 | M79: =_xll.qlBondYieldFromCleanPrice(M5,M77,M20,M21,M22,$F$2) -> 0.107676
E80: Test | F80: =F79-F78 -> -7.218865783e-11 | G80: 6.068494318e-11 | H80: 3.678346516e-11 | I80: -6.461889357e-11 | J80: 8.008625707e-11 | K80: 5.274264359e-11 | L80: 4.183502156e-11 | M80: 1.666695948e-11

Sheet NTN-F (Anbima)
A1: Títulos Públicos Federais | K1: 2011-11-11
A3: Papel PREFIXADO | C3: NTN-F - Taxa (% a.a.)/252
A4: Código SELIC | B4: Data Base/Emissão | C4: Data de Vencimento | D4: Tx. Máxima | E4: Tx. Mínima | F4: Tx. Indicativas | G4: PU | H4: Intervalo Indicativo
H5: Mínimo (D0) | I5: Máximo (D0) | J5: Mínimo (D+1) | K5: Máximo (D+1)
A6: 950199 | B6: 2005-06-01 | C6: 2012-01-01 | D6: 11.1042 | E6: 11.05 | F6: 11.098 | G6: 1033.589894 | H6: 10.8845 | I6: 11.2099 | J6: 10.8945 | K6: 11.2147
A7: 950199 | B7: 2007-07-06 | C7: 2013-01-01 | D7: 10.09 | E7: 10.04 | F7: 10.054 | G7: 1034.84827 | H7: 9.8153 | I7: 10.2391 | J7: 9.7846 | K7: 10.2079
A8: 950199 | B8: 2006-05-05 | C8: 2014-01-01 | D8: 10.4916 | E8: 10.4066 | F8: 10.4156 | G8: 1027.66486 | H8: 10.1296 | I8: 10.6738 | J8: 10.0804 | K8: 10.6245
A9: 950199 | B9: 2010-09-03 | C9: 2015-01-01 | D9: 10.8 | E9: 10.7421 | F9: 10.7496 | G9: 1016.178366 | H9: 10.4313 | I9: 11.0308 | J9: 10.3912 | K9: 10.9906
A10: 950199 | B10: 2007-01-05 | C10: 2017-01-01 | D10: 11.21 | E10: 11 | F10: 11.12 | G10: 994.592508 | H10: 10.8207 | I10: 11.4425 | J10: 10.7901 | K10: 11.4118
A11: 950199 | B11: 2010-02-05 | C11: 2021-01-01 | D11: 11.37 | E11: 11.18 | F11: 11.259 | G11: 968.861628 | H11: 10.9238 | I11: 11.595 | J11: 10.9158 | K11: 11.5868
A13: Resumo da Metodologia para o Cálculo das Taxas Médias
A15: - A metodologia para a apuração das taxas médias tem por objetivo eliminar observações que, possivelmente, estejam erradas e que contaminem o cálculo da média.
A16: - Três taxas são requisitadas às instituições pertencentes à amostra:
A17: * A taxa máxima que corresponde à maior taxa de compra observada para o vencimento;
A18: * A taxa mínima que corresponde à menor taxa de venda observada para o vencimento;
A19: * Taxas Indicativas, que correspondem às taxas avaliadas pela instituição, como referência de preço justo de negócio para cada vencimento, de acordo com suas curvas individuais, no dia de referência.
A20: - Os dados fornecidos pelas instituições geram dois filtros, que estabelecem intervalos dentro dos quais as informações fornecidas devem estar contidas. Aquelas que estiverem fora dos intervalos são eliminadas e não entram no cômputo das médias.
A21: - Caso o número de informações restantes, após a aplicação dos critérios acima descritos, não permitir a divulgação de taxas para alguns vencimentos, decidiu-se interpolar a série, utilizando-se para isso o método Cubic Spline, com exceção da LFT que adota o método exponencial.
A22: - A íntegra da metodologia pode ser obtida junto à Superintendência Técnica ou nos sites da ANBIMA na RTM ou na Internet.
A24: ANBIMA: Sede: Av. República do Chile 230/13º andar, Centro - RJ - CEP 20.031-170 - Tel.(21) 3814-3801; e Av. Nações Unidas, 8501 - 11º e 21º andares - Conj.A - Pinheiros - SP - CEP: 05425-070 - Tel.(11) 3032-3838.
A25: ENDEREÇOS NA INTERNET: www.anbima.com.br e www.Anbima.com.br

Sheet NTN-F (QuantLibXL)
E2: Evaluation Date | F2: ='NTN-F (Anbima)'!K1 -> 2011-11-11
E3: Set Evaluation Date | F3: =_xll.qlSettingsSetEvaluationDate(F2) -> TRUE
E5: FixedRateBond2 | F5: =_xll.qlFixedRateBond2(,F8,F9,F10,F11,F12,F13,F14,F15,F16,F17) -> obj_00108#0012 | G5: =_xll.qlFixedRateBond2(,G8,G9,G10,G11,G12,G13,G14,G15,G16,G17) -> obj_00103#0009 | H5: =_xll.qlFixedRateBond2(,H8,H9,H10,H11,H12,H13,H14,H15,H16,H17) -> obj_00105#0009 | I5: =_xll.qlFixedRateBond2(,I8,I9,I10,I11,I12,I13,I14,I15,I16,I17) -> obj_00112#0002 | J5: =_xll.qlFixedRateBond2(,J8,J9,J10,J11,J12,J13,J14,J15,J16,J17) -> obj_00111#0002 | K5: =_xll.qlFixedRateBond2(,K8,K9,K10,K11,K12,K13,K14,K15,K16,K17) -> obj_00113#0002
E6: Error | F6: =_xll.ohRangeRetrieveError(F5) ->  | G6: =_xll.ohRangeRetrieveError(G5) ->  | H6: =_xll.ohRangeRetrieveError(H5) ->  | I6: =_xll.ohRangeRetrieveError(I5) ->  | J6: =_xll.ohRangeRetrieveError(J5) ->  | K6: =_xll.ohRangeRetrieveError(K5) -> 
E7: ObjectID
E8: Description | F8: NTN-F | G8: NTN-F | H8: NTN-F | I8: NTN-F | J8: NTN-F | K8: NTN-F
E9: Currency | F9: BRL | G9: BRL | H9: BRL | I9: BRL | J9: BRL | K9: BRL
E10: SettlementDays | F10: 0 | G10: 0 | H10: 0 | I10: 0 | J10: 0 | K10: 0
E11: FaceAmount | F11: 1000 | G11: 1000 | H11: 1000 | I11: 1000 | J11: 1000 | K11: 1000
E12: ScheduleID | F12: =F27 -> obj_00104#0007 | G12: =G27 -> obj_000fe#0007 | H12: obj_00101#0007 | I12: obj_0010e#0002 | J12: obj_00110#0002 | K12: obj_0010f#0002
E13: Coupons | F13: =F20 -> obj_00102#0005 | G13: =G20 -> obj_00100#0003 | H13: obj_000ff#0004 | I13: obj_0010d#0002 | J13: obj_0010b#0002 | K13: obj_0010c#0002
E14: PaymentBDC | F14: Following | G14: Following | H14: Following | I14: Following | J14: Following | K14: Following
E15: Redemption | F15: 100 | G15: 100 | H15: 100 | I15: 100 | J15: 100 | K15: 100
E16: IssueDate
E17: Calendar | F17: Brazil::Settlement | G17: Brazil::Settlement | H17: Brazil::Settlement | I17: Brazil::Settlement | J17: Brazil::Settlement | K17: Brazil::Settlement
E18: Permanent
E20: InterestRate | F20: =_xll.qlInterestRate(,F22,F23,F24,F25) -> obj_00102#0005 | G20: =_xll.qlInterestRate(,G22,G23,G24,G25) -> obj_00100#0003 | H20: =_xll.qlInterestRate(,H22,H23,H24,H25) -> obj_000ff#0004 | I20: =_xll.qlInterestRate(,I22,I23,I24,I25) -> obj_0010d#0002 | J20: =_xll.qlInterestRate(,J22,J23,J24,J25) -> obj_0010b#0002 | K20: =_xll.qlInterestRate(,K22,K23,K24,K25) -> obj_0010c#0002
E21: Error | F21: =_xll.ohRangeRetrieveError(F20) ->  | G21: =_xll.ohRangeRetrieveError(G20) ->  | H21: =_xll.ohRangeRetrieveError(H20) ->  | I21: =_xll.ohRangeRetrieveError(I20) ->  | J21: =_xll.ohRangeRetrieveError(J20) ->  | K21: =_xll.ohRangeRetrieveError(K20) -> 
E22: Coupon Rate | F22: 0.1 | G22: 0.1 | H22: 0.1 | I22: 0.1 | J22: 0.1 | K22: 0.1
E23: DayCounter | F23: 30/360 | G23: 30/360 | H23: 30/360 | I23: 30/360 | J23: 30/360 | K23: 30/360
E24: Compounding | F24: Compounded | G24: Compounded | H24: Compounded | I24: Compounded | J24: Compounded | K24: Compounded
E25: Frequency | F25: Annual | G25: Annual | H25: Annual | I25: Annual | J25: Annual | K25: Annual
E27: Schedule | F27: =_xll.qlSchedule(F29,F30,F31,F32,F33,F34,F35,F36,F37,F38,F39,F40,F41) -> obj_00104#0007 | G27: =_xll.qlSchedule(G29,G30,G31,G32,G33,G34,G35,G36,G37,G38,G39,G40,G41) -> obj_000fe#0007 | H27: =_xll.qlSchedule(H29,H30,H31,H32,H33,H34,H35,H36,H37,H38,H39,H40,H41) -> obj_00101#0007 | I27: =_xll.qlSchedule(I29,I30,I31,I32,I33,I34,I35,I36,I37,I38,I39,I40,I41) -> obj_0010e#0002 | J27: =_xll.qlSchedule(J29,J30,J31,J32,J33,J34,J35,J36,J37,J38,J39,J40,J41) -> obj_00110#0002 | K27: =_xll.qlSchedule(K29,K30,K31,K32,K33,K34,K35,K36,K37,K38,K39,K40,K41) -> obj_0010f#0002
E28: Error | F28: =_xll.ohRangeRetrieveError(F27) ->  | G28: =_xll.ohRangeRetrieveError(G27) ->  | H28: =_xll.ohRangeRetrieveError(H27) ->  | I28: =_xll.ohRangeRetrieveError(I27) ->  | J28: =_xll.ohRangeRetrieveError(J27) ->  | K28: =_xll.ohRangeRetrieveError(K27) -> 
E29: ObjectID
E30: EffectiveDate | F30: =TRANSPOSE('NTN-F (Anbima)'!$B$6:$B$11) -> 2005-06-01 | G30: 2007-07-06 | H30: 2006-05-05 | I30: 2010-09-03 | J30: 2007-01-05 | K30: 2010-02-05
E31: TerminationDate | F31: =TRANSPOSE('NTN-F (Anbima)'!$C$6:$C$11) -> 2012-01-01 | G31: 2013-01-01 | H31: 2014-01-01 | I31: 2015-01-01 | J31: 2017-01-01 | K31: 2021-01-01
E32: Tenor | F32: 6M | G32: 6M | H32: 6M | I32: 6M | J32: 6M | K32: 6M
E33: Calendar | F33: Brazil::Settlement | G33: Brazil::Settlement | H33: Brazil::Settlement | I33: Brazil::Settlement | J33: Brazil::Settlement | K33: Brazil::Settlement
E34: Convention
E35: TermDateConv
E36: GenRule | F36: Backward | G36: Backward | H36: Backward | I36: Backward | J36: Backward | K36: Backward
E37: EndOfMonth
E38: FirstDate
E39: NextToLastDate
E40: Permanent
E41: Trigger
E43: Rate | F43: =TRANSPOSE('NTN-F (Anbima)'!$F$6:$F$11)/100 -> 0.11098 | G43: 0.10054 | H43: 0.104156 | I43: 0.107496 | J43: 0.1112 | K43: 0.11259
E44: DayCounter | F44: Business252 | G44: Business252 | H44: Business252 | I44: Business252 | J44: Business252 | K44: Business252
E45: Compounding | F45: Compounded | G45: Compounded | H45: Compounded | I45: Compounded | J45: Compounded | K45: Compounded
E46: Frequency | F46: Annual | G46: Annual | H46: Annual | I46: Annual | J46: Annual | K46: Annual
E48: Clean Price | F48: =_xll.qlBondCleanPriceFromYield(F5,F43,F44,F45,F46,$F$2) -> 99.8573189 | G48: =_xll.qlBondCleanPriceFromYield(G5,G43,G44,G45,G46,$F$2) -> 99.98315618 | H48: =_xll.qlBondCleanPriceFromYield(H5,H43,H44,H45,H46,$F$2) -> 99.26481493 | I48: =_xll.qlBondCleanPriceFromYield(I5,I43,I44,I45,I46,$F$2) -> 98.11616525 | J48: =_xll.qlBondCleanPriceFromYield(J5,J43,J44,J45,J46,$F$2) -> 95.95757896 | K48: =_xll.qlBondCleanPriceFromYield(K5,K43,K44,K45,K46,$F$2) -> 93.38449033
E49: BondHelper | F49: =_xll.qlBondHelper(,F48,F5) -> obj_00109#0013 | G49: =_xll.qlBondHelper(,G48,G5) -> obj_00106#0010 | H49: =_xll.qlBondHelper(,H48,H5) -> obj_00107#0010 | I49: =_xll.qlBondHelper(,I48,I5) -> obj_00115#0002 | J49: =_xll.qlBondHelper(,J48,J5) -> obj_00114#0002 | K49: =_xll.qlBondHelper(,K48,K5) -> obj_00116#0002
E51: Yield Curve | F51: =_xll.qlPiecewiseYieldCurve(,,F53,F49:K49,F54,,,,F55,F56) -> obj_0010a#0014
E52: Error | F52: =_xll.ohRangeRetrieveError(F51) -> 
E53: Calendar | F53: Brazil::Settlement
E54: DayCounter | F54: Business252
F55: Discount
E56: Interpolator | F56: LogLinear
E58: DayCounter | F58: Business252
E59: Compounding | F59: Compounded
E60: Frequency | F60: Annual
E61: =_xll.qlPiecewiseYieldCurveDates(F51) -> 2011-11-11 | F61: =_xll.qlYieldTSZeroRate($F$51,E61,$F$58,$F$59,$F$60) -> 0.11098
E62: 2012-01-02 | F62: =_xll.qlYieldTSZeroRate($F$51,E62,$F$58,$F$59,$F$60) -> 0.11098
E63: 2013-01-02 | F63: =_xll.qlYieldTSZeroRate($F$51,E63,$F$58,$F$59,$F$60) -> 0.1004460778
E64: 2014-01-02 | F64: =_xll.qlYieldTSZeroRate($F$51,E64,$F$58,$F$59,$F$60) -> 0.1043194112
E65: 2015-01-02 | F65: =_xll.qlYieldTSZeroRate($F$51,E65,$F$58,$F$59,$F$60) -> 0.1079894316
E66: 2017-01-02 | F66: =_xll.qlYieldTSZeroRate($F$51,E66,$F$58,$F$59,$F$60) -> 0.1121715535
E67: 2021-01-04 | F67: =_xll.qlYieldTSZeroRate($F$51,E67,$F$58,$F$59,$F$60) -> 0.1136251441
F68: =_xll.qlYieldTSZeroRate($F$51,E68,$F$58,$F$59,$F$60) -> 
F69: =_xll.qlYieldTSZeroRate($F$51,E69,$F$58,$F$59,$F$60) -> 
F70: =_xll.qlYieldTSZeroRate($F$51,E70,$F$58,$F$59,$F$60) -> 
F71: =_xll.qlYieldTSZeroRate($F$51,E71,$F$58,$F$59,$F$60) -> 
F72: =_xll.qlYieldTSZeroRate($F$51,E72,$F$58,$F$59,$F$60) -> 
F73: =_xll.qlYieldTSZeroRate($F$51,E73,$F$58,$F$59,$F$60) -> 
F74: =_xll.qlYieldTSZeroRate($F$51,E74,$F$58,$F$59,$F$60) -> 
F75: =_xll.qlYieldTSZeroRate($F$51,E75,$F$58,$F$59,$F$60) -> 
F76: =_xll.qlYieldTSZeroRate($F$51,E76,$F$58,$F$59,$F$60) -> 
F77: =_xll.qlYieldTSZeroRate($F$51,E77,$F$58,$F$59,$F$60) -> 
F78: =_xll.qlYieldTSZeroRate($F$51,E78,$F$58,$F$59,$F$60) -> 
F79: =_xll.qlYieldTSZeroRate($F$51,E79,$F$58,$F$59,$F$60) -> 
B81: Price Test from YTM | E81: Yield | F81: =TRANSPOSE('NTN-F (Anbima)'!$F$6:$F$11)/100 -> 0.11098 | G81: 0.10054 | H81: 0.104156 | I81: 0.107496 | J81: 0.1112 | K81: 0.11259
E82: Clean Price | F82: =_xll.qlBondCleanPriceFromYield(F5,F43,F44,F45,F46,$F$2) -> 99.8573189 | G82: =_xll.qlBondCleanPriceFromYield(G5,G43,G44,G45,G46,$F$2) -> 99.98315618 | H82: =_xll.qlBondCleanPriceFromYield(H5,H43,H44,H45,H46,$F$2) -> 99.26481493 | I82: =_xll.qlBondCleanPriceFromYield(I5,I43,I44,I45,I46,$F$2) -> 98.11616525 | J82: =_xll.qlBondCleanPriceFromYield(J5,J43,J44,J45,J46,$F$2) -> 95.95757896 | K82: =_xll.qlBondCleanPriceFromYield(K5,K43,K44,K45,K46,$F$2) -> 93.38449033
E83: Accrued Amount | F83: =_xll.qlBondAccruedAmount(F$5) -> 3.501670318 | G83: =_xll.qlBondAccruedAmount(G$5) -> 3.501670318 | H83: =_xll.qlBondAccruedAmount(H$5) -> 3.501670318 | I83: =_xll.qlBondAccruedAmount(I$5) -> 3.501670318 | J83: =_xll.qlBondAccruedAmount(J$5) -> 3.501670318 | K83: =_xll.qlBondAccruedAmount(K$5) -> 3.501670318
E84: Anbima | F84: =TRANSPOSE('NTN-F (Anbima)'!$G$6:$G$11) -> 1033.589894 | G84: 1034.84827 | H84: 1027.66486 | I84: 1016.178366 | J84: 994.592508 | K84: 968.861628
E85: QuantLibXL | F85: =(F82+F83)*(_xll.qlBondNotional(F$5)/100) -> 1033.589892 | G85: =(G82+G83)*(_xll.qlBondNotional(G$5)/100) -> 1034.848265 | H85: =(H82+H83)*(_xll.qlBondNotional(H$5)/100) -> 1027.664852 | I85: =(I82+I83)*(_xll.qlBondNotional(I$5)/100) -> 1016.178356 | J85: =(J82+J83)*(_xll.qlBondNotional(J$5)/100) -> 994.5924928 | K85: =(K82+K83)*(_xll.qlBondNotional(K$5)/100) -> 968.8616065
E86: Test | F86: =F85-F84 -> -1.77366519e-06 | G86: =G85-G84 -> -5.025246537e-06 | H86: -7.55970791e-06 | I86: -1.026671805e-05 | J86: -1.518538681e-05 | K86: -2.150404919e-05
B88: Price Test from Yield Curve | E88: Clean Price | F88: =_xll.qlBondCleanPriceFromYieldTermStructure(F5,$F$51,$F$2) -> 99.8573189 | G88: =_xll.qlBondCleanPriceFromYieldTermStructure(G5,$F$51,$F$2) -> 99.98315618 | H88: =_xll.qlBondCleanPriceFromYieldTermStructure(H5,$F$51,$F$2) -> 99.26481493 | I88: =_xll.qlBondCleanPriceFromYieldTermStructure(I5,$F$51,$F$2) -> 98.11616525 | J88: =_xll.qlBondCleanPriceFromYieldTermStructure(J5,$F$51,$F$2) -> 95.95757896 | K88: =_xll.qlBondCleanPriceFromYieldTermStructure(K5,$F$51,$F$2) -> 93.38449033
E89: Accrued Amount | F89: =_xll.qlBondAccruedAmount(F5) -> 3.501670318 | G89: =_xll.qlBondAccruedAmount(G5) -> 3.501670318 | H89: =_xll.qlBondAccruedAmount(H5) -> 3.501670318 | I89: =_xll.qlBondAccruedAmount(I5) -> 3.501670318 | J89: =_xll.qlBondAccruedAmount(J5) -> 3.501670318 | K89: =_xll.qlBondAccruedAmount(K5) -> 3.501670318
E90: Anbima | F90: =TRANSPOSE('NTN-F (Anbima)'!$G$6:$G$11) -> 1033.589894 | G90: 1034.84827 | H90: 1027.66486 | I90: 1016.178366 | J90: 994.592508 | K90: 968.861628
E91: QuantLibXL | F91: =(F88+F89)*(_xll.qlBondNotional(F$5)/100) -> 1033.589892 | G91: =(G88+G89)*(_xll.qlBondNotional(G$5)/100) -> 1034.848265 | H91: =(H88+H89)*(_xll.qlBondNotional(H$5)/100) -> 1027.664852 | I91: =(I88+I89)*(_xll.qlBondNotional(I$5)/100) -> 1016.178356 | J91: =(J88+J89)*(_xll.qlBondNotional(J$5)/100) -> 994.5924928 | K91: =(K88+K89)*(_xll.qlBondNotional(K$5)/100) -> 968.8616065
E92: Test | F92: =F91-F90 -> -1.774189968e-06 | G92: =G91-G90 -> -5.025246537e-06 | H92: -7.55970791e-06 | I92: -1.026671805e-05 | J92: -1.518538681e-05 | K92: -2.150412377e-05
B94: Yield Test From Anbima Price | E94: Anbima | F94: =TRANSPOSE('NTN-F (Anbima)'!$G$6:$G$11) -> 1033.589894 | G94: 1034.84827 | H94: 1027.66486 | I94: 1016.178366 | J94: 994.592508 | K94: 968.861628
E95: Accrued Amount | F95: =_xll.qlBondAccruedAmount(F$5) -> 3.501670318 | G95: =_xll.qlBondAccruedAmount(G$5) -> 3.501670318 | H95: =_xll.qlBondAccruedAmount(H$5) -> 3.501670318 | I95: =_xll.qlBondAccruedAmount(I$5) -> 3.501670318 | J95: =_xll.qlBondAccruedAmount(J$5) -> 3.501670318 | K95: =_xll.qlBondAccruedAmount(K$5) -> 3.501670318
E96: Clean Price | F96: =F94/(_xll.qlBondNotional(F5)/100)-F95 -> 99.85731908 | G96: =G94/(_xll.qlBondNotional(G5)/100)-G95 -> 99.98315668 | H96: =H94/(_xll.qlBondNotional(H5)/100)-H95 -> 99.26481568 | I96: =I94/(_xll.qlBondNotional(I5)/100)-I95 -> 98.11616628 | J96: =J94/(_xll.qlBondNotional(J5)/100)-J95 -> 95.95758048 | K96: =K94/(_xll.qlBondNotional(K5)/100)-K95 -> 93.38449248
E97: Yield | F97: =TRANSPOSE('NTN-F (Anbima)'!$F$6:$F$11)/100 -> 0.11098 | G97: 0.10054 | H97: 0.104156 | I97: 0.107496 | J97: 0.1112 | K97: 0.11259
E98: QuantLibXL | F98: =_xll.qlBondYieldFromCleanPrice(F5,F96,F44,F45,F46,$F$2) -> 0.1109799863 | G98: =_xll.qlBondYieldFromCleanPrice(G5,G96,G44,G45,G46,$F$2) -> 0.1005399951 | H98: =_xll.qlBondYieldFromCleanPrice(H5,H96,H44,H45,H46,$F$2) -> 0.1041559958 | I98: =_xll.qlBondYieldFromCleanPrice(I5,I96,I44,I45,I46,$F$2) -> 0.1074959959 | J98: =_xll.qlBondYieldFromCleanPrice(J5,J96,J44,J45,J46,$F$2) -> 0.1111999958 | K98: =_xll.qlBondYieldFromCleanPrice(K5,K96,K44,K45,K46,$F$2) -> 0.1125899958
E99: Test | F99: =F98-F97 -> -1.371029767e-08 | G99: =G98-G97 -> -4.93165106e-09 | H99: -4.184417438e-09 | I99: -4.147164501e-09 | J99: -4.219748065e-09 | K99: -4.166997969e-09
B101: Yield Test From Yield Curve | E101: Clean Price | F101: =_xll.qlBondCleanPriceFromYieldTermStructure(F5,$F$51,$F$2) -> 99.8573189 | G101: =_xll.qlBondCleanPriceFromYieldTermStructure(G5,$F$51,$F$2) -> 99.98315618 | H101: =_xll.qlBondCleanPriceFromYieldTermStructure(H5,$F$51,$F$2) -> 99.26481493 | I101: =_xll.qlBondCleanPriceFromYieldTermStructure(I5,$F$51,$F$2) -> 98.11616525 | J101: =_xll.qlBondCleanPriceFromYieldTermStructure(J5,$F$51,$F$2) -> 95.95757896 | K101: =_xll.qlBondCleanPriceFromYieldTermStructure(K5,$F$51,$F$2) -> 93.38449033
E102: Yield | F102: =TRANSPOSE('NTN-F (Anbima)'!$F$6:$F$11)/100 -> 0.11098 | G102: 0.10054 | H102: 0.104156 | I102: 0.107496 | J102: 0.1112 | K102: 0.11259
E103: QuantLibXL | F103: =_xll.qlBondYieldFromCleanPrice(F5,F101,F44,F45,F46,$F$2) -> 0.11098 | G103: =_xll.qlBondYieldFromCleanPrice(G5,G101,G44,G45,G46,$F$2) -> 0.10054 | H103: =_xll.qlBondYieldFromCleanPrice(H5,H101,H44,H45,H46,$F$2) -> 0.1041560001 | I103: =_xll.qlBondYieldFromCleanPrice(I5,I101,I44,I45,I46,$F$2) -> 0.1074959999 | J103: =_xll.qlBondYieldFromCleanPrice(J5,J101,J44,J45,J46,$F$2) -> 0.1112 | K103: =_xll.qlBondYieldFromCleanPrice(K5,K101,K44,K45,K46,$F$2) -> 0.1125899999
E104: Test | F104: =F103-F102 -> 3.959982342e-11 | G104: =G103-G102 -> -2.097338969e-11 | H104: 7.150320613e-11 | I104: -5.493311361e-11 | J104: 3.61725927e-11 | K104: -7.476658181e-11

Sheet NTN-B (Anbima)
A1: Títulos Públicos Federais | K1: 2011-11-11
A3: Papel IPCA | C3: NTN-B - Taxa (% a.a.)/252
A4: Código SELIC | B4: Data Base/Emissão | C4: Data de Vencimento | D4: Tx. Máxima | E4: Tx. Mínima | F4: Tx. Indicativas | G4: PU | H4: Intervalo Indicativo
H5: Mínimo (D0) | I5: Máximo (D0) | J5: Mínimo (D+1) | K5: Máximo (D+1)
A6: 760199 | B6: 2000-07-15 | C6: 2011-11-15 | D6: -- | E6: 4.7969 | F6: 4.864 | G6: 2146.69134 | H6: 4.3557 | I6: 5.3697 | J6: 4.3371 | K6: 5.355
A7: 760199 | B7: 2000-07-15 | C7: 2012-08-15 | D7: 4.2 | E7: 3.8 | F7: 3.9213 | G7: 2146.51613 | H7: 3.6057 | I7: 4.1543 | J7: 3.6039 | K7: 4.1532
A8: 760199 | B8: 2000-07-15 | C8: 2013-05-15 | D8: 4.25 | E8: 4.09 | F8: 4.1399 | G8: 2202.293498 | H8: 3.8981 | I8: 4.318 | J8: 3.8968 | K8: 4.3175
A9: 760199 | B9: 2000-07-15 | C9: 2014-08-15 | D9: 4.8 | E9: 4.69 | F9: 4.7401 | G9: 2181.343351 | H9: 4.5611 | I9: 4.9605 | J9: 4.5113 | K9: 4.9107
A10: 760199 | B10: 2000-07-15 | C10: 2015-05-15 | D10: 5.06 | E10: 4.94 | F10: 4.979 | G10: 2213.296289 | H10: 4.8194 | I10: 5.2225 | J10: 4.755 | K10: 5.1581
A11: 760199 | B11: 2000-07-15 | C11: 2016-08-15 | D11: 5.35 | E11: 5.15 | F11: 5.2081 | G11: 2183.239377 | H11: 5.0346 | I11: 5.4332 | J11: 4.975 | K11: 5.3737
A12: 760199 | B12: 2000-07-15 | C12: 2017-05-15 | D12: 5.27 | E12: -- | F12: 5.201 | G12: 2225.202247 | H12: 5.0224 | I12: 5.4295 | J12: 4.9635 | K12: 5.3706
A13: 760199 | B13: 2000-07-15 | C13: 2018-08-15 | D13: 5.4033 | E13: 5.28 | F13: 5.3613 | G13: 2189.96203 | H13: 5.1604 | I13: 5.567 | J13: 5.1264 | K13: 5.5331
A14: 760199 | B14: 2000-07-15 | C14: 2020-08-15 | D14: 5.8 | E14: 5.3 | F14: 5.4596 | G14: 2193.195077 | H14: 5.2508 | I14: 5.6339 | J14: 5.2408 | K14: 5.624
A15: 760199 | B15: 2000-07-15 | C15: 2022-08-15 | D15: 5.5241 | E15: 5.3833 | F15: 5.4598 | G15: 2206.863567 | H15: 5.2794 | I15: 5.6317 | J15: 5.2593 | K15: 5.6116
A16: 760100 | B16: 2000-07-15 | C16: 2023-03-15 | D16: -- | E16: -- | F16: 5.4719 | G16: 2198.432614 | H16: 5.3214 | I16: 5.6648 | J16: 5.2763 | K16: 5.6198
A17: 760199 | B17: 2000-07-15 | C17: 2024-08-15 | D17: 5.5716 | E17: 5.38 | F17: 5.4925 | G17: 2212.701825 | H17: 5.3709 | I17: 5.695 | J17: 5.3078 | K17: 5.6319
A18: 760199 | B18: 2000-07-15 | C18: 2030-08-15 | D18: -- | E18: 5.4783 | F18: 5.5472 | G18: 2226.74368 | H18: 5.4358 | I18: 5.7178 | J18: 5.3926 | K18: 5.6744
A19: 760199 | B19: 2000-07-15 | C19: 2035-05-15 | D19: 5.8 | E19: 5.3 | F19: 5.5443 | G19: 2273.243245 | H19: 5.4582 | I19: 5.7201 | J19: 5.4027 | K19: 5.6643
A20: 760199 | B20: 2000-07-15 | C20: 2040-08-15 | D20: 5.6577 | E20: 5.488 | F20: 5.5715 | G20: 2245.395235 | H20: 5.4673 | I20: 5.7153 | J20: 5.4387 | K20: 5.6865
A21: 760199 | B21: 2000-07-15 | C21: 2045-05-15 | D21: 5.63 | E21: 5.5221 | F21: 5.5721 | G21: 2284.715349 | H21: 5.4729 | I21: 5.7126 | J21: 5.4447 | K21: 5.6842
A22: 760199 | B22: 2000-07-15 | C22: 2050-08-15 | D22: 5.67 | E22: 5.54 | F22: 5.5992 | G22: 2250.651544 | H22: 5.4957 | I22: 5.7291 | J22: 5.4758 | K22: 5.709
A23: Quando uma taxa for interpolada será apresentada em negrito.
A24: Os preços unitários são calculados a partir da projeção para o IPCA apurada pela Comitê de Acompanhamento Macroeconômico da ANBIMA
A25: para o mês, à exceção do período entre o dia de divulgação do IPCA final e o dia 15 do mês corrente, caso em que é utilizado o próprio índice do
A26: mês anterior, divulgado pelo IBGE.
A27: IPCA final para Outubro : 0,43%

Sheet NTN-B (QuantLibXL)
E2: Evaluation Date | F2: ='NTN-C (Anbima)'!K1 -> 2011-11-11
E3: Set Evaluation Date | F3: =_xll.qlSettingsSetEvaluationDate(F2) -> TRUE
E5: FixedRateBond2 | F5: =_xll.qlFixedRateBond2(,F8,F9,F10,F11,F12,F13,F14,F15,F16,F17) -> obj_000fb#0003 | G5: =_xll.qlFixedRateBond2(,G8,G9,G10,G11,G12,G13,G14,G15,G16,G17) -> obj_000f7#0003 | H5: =_xll.qlFixedRateBond2(,H8,H9,H10,H11,H12,H13,H14,H15,H16,H17) -> obj_000f6#0003 | I5: =_xll.qlFixedRateBond2(,I8,I9,I10,I11,I12,I13,I14,I15,I16,I17) -> obj_0012b#0002 | J5: =_xll.qlFixedRateBond2(,J8,J9,J10,J11,J12,J13,J14,J15,J16,J17) -> obj_0013f#0002 | K5: =_xll.qlFixedRateBond2(,K8,K9,K10,K11,K12,K13,K14,K15,K16,K17) -> obj_00141#0002 | L5: =_xll.qlFixedRateBond2(,L8,L9,L10,L11,L12,L13,L14,L15,L16,L17) -> obj_0013b#0002 | M5: =_xll.qlFixedRateBond2(,M8,M9,M10,M11,M12,M13,M14,M15,M16,M17) -> obj_00136#0002 | N5: =_xll.qlFixedRateBond2(,N8,N9,N10,N11,N12,N13,N14,N15,N16,N17) -> obj_0013c#0002 | O5: =_xll.qlFixedRateBond2(,O8,O9,O10,O11,O12,O13,O14,O15,O16,O17) -> obj_0013d#0002 | P5: =_xll.qlFixedRateBond2(,P8,P9,P10,P11,P12,P13,P14,P15,P16,P17) -> obj_00144#0002 | Q5: =_xll.qlFixedRateBond2(,Q8,Q9,Q10,Q11,Q12,Q13,Q14,Q15,Q16,Q17) -> obj_00129#0002 | R5: =_xll.qlFixedRateBond2(,R8,R9,R10,R11,R12,R13,R14,R15,R16,R17) -> obj_00143#0002 | S5: =_xll.qlFixedRateBond2(,S8,S9,S10,S11,S12,S13,S14,S15,S16,S17) -> obj_00142#0002 | T5: =_xll.qlFixedRateBond2(,T8,T9,T10,T11,T12,T13,T14,T15,T16,T17) -> obj_0013e#0002 | U5: =_xll.qlFixedRateBond2(,U8,U9,U10,U11,U12,U13,U14,U15,U16,U17) -> obj_00132#0002 | V5: =_xll.qlFixedRateBond2(,V8,V9,V10,V11,V12,V13,V14,V15,V16,V17) -> obj_00140#0002
E6: Error | F6: =_xll.ohRangeRetrieveError(F5) ->  | G6: =_xll.ohRangeRetrieveError(G5) ->  | H6: =_xll.ohRangeRetrieveError(H5) ->  | I6: =_xll.ohRangeRetrieveError(I5) ->  | J6: =_xll.ohRangeRetrieveError(J5) ->  | K6: =_xll.ohRangeRetrieveError(K5) ->  | L6: =_xll.ohRangeRetrieveError(L5) ->  | M6: =_xll.ohRangeRetrieveError(M5) ->  | N6: =_xll.ohRangeRetrieveError(N5) ->  | O6: =_xll.ohRangeRetrieveError(O5) ->  | P6: =_xll.ohRangeRetrieveError(P5) ->  | Q6: =_xll.ohRangeRetrieveError(Q5) ->  | R6: =_xll.ohRangeRetrieveError(R5) ->  | S6: =_xll.ohRangeRetrieveError(S5) ->  | T6: =_xll.ohRangeRetrieveError(T5) ->  | U6: =_xll.ohRangeRetrieveError(U5) ->  | V6: =_xll.ohRangeRetrieveError(V5) -> 
E7: ObjectID
E8: Description | F8: NTN-B | G8: NTN-B | H8: NTN-B | I8: NTN-B | J8: NTN-B | K8: NTN-B | L8: NTN-B | M8: NTN-B | N8: NTN-B | O8: NTN-B | P8: NTN-B | Q8: NTN-B | R8: NTN-B | S8: NTN-B | T8: NTN-B | U8: NTN-B | V8: NTN-B
E9: Currency | F9: BRL | G9: BRL | H9: BRL | I9: BRL | J9: BRL | K9: BRL | L9: BRL | M9: BRL | N9: BRL | O9: BRL | P9: BRL | Q9: BRL | R9: BRL | S9: BRL | T9: BRL | U9: BRL | V9: BRL
E10: SettlementDays | F10: 0 | G10: 0 | H10: 0 | I10: 0 | J10: 0 | K10: 0 | L10: 0 | M10: 0 | N10: 0 | O10: 0 | P10: 0 | Q10: 0 | R10: 0 | S10: 0 | T10: 0 | U10: 0 | V10: 0
E11: FaceAmount | F11: 2085.837045 | G11: 2085.837045 | H11: 2085.837045 | I11: 2085.837045 | J11: 2085.837045 | K11: 2085.837045 | L11: 2085.837045 | M11: 2085.837045 | N11: 2085.837045 | O11: 2085.837045 | P11: 2085.837045 | Q11: 2085.837045 | R11: 2085.837045 | S11: 2085.837045 | T11: 2085.837045 | U11: 2085.837045 | V11: 2085.837045
E12: ScheduleID | F12: =F27 -> obj_000f8#0003 | G12: =G27 -> obj_000f1#0003 | H12: =H27 -> obj_000f4#0003 | I12: =I27 -> obj_00123#0002 | J12: =J27 -> obj_00133#0002 | K12: =K27 -> obj_0012c#0002 | L12: =L27 -> obj_00134#0002 | M12: =M27 -> obj_00121#0002 | N12: =N27 -> obj_0012d#0002 | O12: =O27 -> obj_0012a#0002 | P12: =P27 -> obj_0012e#0002 | Q12: =Q27 -> obj_0011c#0002 | R12: =R27 -> obj_00131#0002 | S12: =S27 -> obj_0012f#0002 | T12: =T27 -> obj_00135#0002 | U12: =U27 -> obj_0011a#0002 | V12: =V27 -> obj_00130#0002
E13: Coupons | F13: =F20 -> obj_000f5#0002 | G13: =G20 -> obj_000f3#0002 | H13: =H20 -> obj_000f2#0003 | I13: =I20 -> obj_00127#0002 | J13: =J20 -> obj_00125#0002 | K13: =K20 -> obj_00122#0002 | L13: =L20 -> obj_00128#0002 | M13: =M20 -> obj_00126#0002 | N13: =N20 -> obj_00124#0002 | O13: =O20 -> obj_0011d#0002 | P13: =P20 -> obj_00120#0002 | Q13: =Q20 -> obj_00118#0002 | R13: =R20 -> obj_0011f#0002 | S13: =S20 -> obj_0011b#0002 | T13: =T20 -> obj_00119#0002 | U13: =U20 -> obj_00117#0002 | V13: =V20 -> obj_0011e#0002
E14: PaymentBDC | F14: Following | G14: Following | H14: Following | I14: Following | J14: Following | K14: Following | L14: Following | M14: Following | N14: Following | O14: Following | P14: Following | Q14: Following | R14: Following | S14: Following | T14: Following | U14: Following | V14: Following
E15: Redemption | F15: 100 | G15: 100 | H15: 100 | I15: 100 | J15: 100 | K15: 100 | L15: 100 | M15: 100 | N15: 100 | O15: 100 | P15: 100 | Q15: 100 | R15: 100 | S15: 100 | T15: 100 | U15: 100 | V15: 100
E16: IssueDate
E17: Calendar | F17: Brazil::Settlement | G17: Brazil::Settlement | H17: Brazil::Settlement | I17: Brazil::Settlement | J17: Brazil::Settlement | K17: Brazil::Settlement | L17: Brazil::Settlement | M17: Brazil::Settlement | N17: Brazil::Settlement | O17: Brazil::Settlement | P17: Brazil::Settlement | Q17: Brazil::Settlement | R17: Brazil::Settlement | S17: Brazil::Settlement | T17: Brazil::Settlement | U17: Brazil::Settlement | V17: Brazil::Settlement
E18: Permanent
E20: InterestRate | F20: =_xll.qlInterestRate(,F22,F23,F24,F25) -> obj_000f5#0002 | G20: =_xll.qlInterestRate(,G22,G23,G24,G25) -> obj_000f3#0002 | H20: =_xll.qlInterestRate(,H22,H23,H24,H25) -> obj_000f2#0003 | I20: =_xll.qlInterestRate(,I22,I23,I24,I25) -> obj_00127#0002 | J20: =_xll.qlInterestRate(,J22,J23,J24,J25) -> obj_00125#0002 | K20: =_xll.qlInterestRate(,K22,K23,K24,K25) -> obj_00122#0002 | L20: =_xll.qlInterestRate(,L22,L23,L24,L25) -> obj_00128#0002 | M20: =_xll.qlInterestRate(,M22,M23,M24,M25) -> obj_00126#0002 | N20: =_xll.qlInterestRate(,N22,N23,N24,N25) -> obj_00124#0002 | O20: =_xll.qlInterestRate(,O22,O23,O24,O25) -> obj_0011d#0002 | P20: =_xll.qlInterestRate(,P22,P23,P24,P25) -> obj_00120#0002 | Q20: =_xll.qlInterestRate(,Q22,Q23,Q24,Q25) -> obj_00118#0002 | R20: =_xll.qlInterestRate(,R22,R23,R24,R25) -> obj_0011f#0002 | S20: =_xll.qlInterestRate(,S22,S23,S24,S25) -> obj_0011b#0002 | T20: =_xll.qlInterestRate(,T22,T23,T24,T25) -> obj_00119#0002 | U20: =_xll.qlInterestRate(,U22,U23,U24,U25) -> obj_00117#0002 | V20: =_xll.qlInterestRate(,V22,V23,V24,V25) -> obj_0011e#0002
E21: Error | F21: =_xll.ohRangeRetrieveError(F20) ->  | G21: =_xll.ohRangeRetrieveError(G20) ->  | H21: =_xll.ohRangeRetrieveError(H20) ->  | I21: =_xll.ohRangeRetrieveError(I20) ->  | J21: =_xll.ohRangeRetrieveError(J20) ->  | K21: =_xll.ohRangeRetrieveError(K20) ->  | L21: =_xll.ohRangeRetrieveError(L20) ->  | M21: =_xll.ohRangeRetrieveError(M20) ->  | N21: =_xll.ohRangeRetrieveError(N20) ->  | O21: =_xll.ohRangeRetrieveError(O20) ->  | P21: =_xll.ohRangeRetrieveError(P20) ->  | Q21: =_xll.ohRangeRetrieveError(Q20) ->  | R21: =_xll.ohRangeRetrieveError(R20) ->  | S21: =_xll.ohRangeRetrieveError(S20) ->  | T21: =_xll.ohRangeRetrieveError(T20) ->  | U21: =_xll.ohRangeRetrieveError(U20) ->  | V21: =_xll.ohRangeRetrieveError(V20) -> 
E22: Coupon Rate | F22: 0.06 | G22: 0.06 | H22: 0.06 | I22: 0.06 | J22: 0.06 | K22: 0.06 | L22: 0.06 | M22: 0.06 | N22: 0.06 | O22: 0.06 | P22: 0.06 | Q22: 0.06 | R22: 0.06 | S22: 0.06 | T22: 0.06 | U22: 0.06 | V22: 0.06
E23: DayCounter | F23: 30/360 | G23: 30/360 | H23: 30/360 | I23: 30/360 | J23: 30/360 | K23: 30/360 | L23: 30/360 | M23: 30/360 | N23: 30/360 | O23: 30/360 | P23: 30/360 | Q23: 30/360 | R23: 30/360 | S23: 30/360 | T23: 30/360 | U23: 30/360 | V23: 30/360
E24: Compounding | F24: Compounded | G24: Compounded | H24: Compounded | I24: Compounded | J24: Compounded | K24: Compounded | L24: Compounded | M24: Compounded | N24: Compounded | O24: Compounded | P24: Compounded | Q24: Compounded | R24: Compounded | S24: Compounded | T24: Compounded | U24: Compounded | V24: Compounded
E25: Frequency | F25: Annual | G25: Annual | H25: Annual | I25: Annual | J25: Annual | K25: Annual | L25: Annual | M25: Annual | N25: Annual | O25: Annual | P25: Annual | Q25: Annual | R25: Annual | S25: Annual | T25: Annual | U25: Annual | V25: Annual
E27: Schedule | F27: =_xll.qlSchedule(F29,F30,F31,F32,F33,F34,F35,F36,F37,F38,F39,F40,F41) -> obj_000f8#0003 | G27: =_xll.qlSchedule(G29,G30,G31,G32,G33,G34,G35,G36,G37,G38,G39,G40,G41) -> obj_000f1#0003 | H27: =_xll.qlSchedule(H29,H30,H31,H32,H33,H34,H35,H36,H37,H38,H39,H40,H41) -> obj_000f4#0003 | I27: =_xll.qlSchedule(I29,I30,I31,I32,I33,I34,I35,I36,I37,I38,I39,I40,I41) -> obj_00123#0002 | J27: =_xll.qlSchedule(J29,J30,J31,J32,J33,J34,J35,J36,J37,J38,J39,J40,J41) -> obj_00133#0002 | K27: =_xll.qlSchedule(K29,K30,K31,K32,K33,K34,K35,K36,K37,K38,K39,K40,K41) -> obj_0012c#0002 | L27: =_xll.qlSchedule(L29,L30,L31,L32,L33,L34,L35,L36,L37,L38,L39,L40,L41) -> obj_00134#0002 | M27: =_xll.qlSchedule(M29,M30,M31,M32,M33,M34,M35,M36,M37,M38,M39,M40,M41) -> obj_00121#0002 | N27: =_xll.qlSchedule(N29,N30,N31,N32,N33,N34,N35,N36,N37,N38,N39,N40,N41) -> obj_0012d#0002 | O27: =_xll.qlSchedule(O29,O30,O31,O32,O33,O34,O35,O36,O37,O38,O39,O40,O41) -> obj_0012a#0002 | P27: =_xll.qlSchedule(P29,P30,P31,P32,P33,P34,P35,P36,P37,P38,P39,P40,P41) -> obj_0012e#0002 | Q27: =_xll.qlSchedule(Q29,Q30,Q31,Q32,Q33,Q34,Q35,Q36,Q37,Q38,Q39,Q40,Q41) -> obj_0011c#0002 | R27: =_xll.qlSchedule(R29,R30,R31,R32,R33,R34,R35,R36,R37,R38,R39,R40,R41) -> obj_00131#0002 | S27: =_xll.qlSchedule(S29,S30,S31,S32,S33,S34,S35,S36,S37,S38,S39,S40,S41) -> obj_0012f#0002 | T27: =_xll.qlSchedule(T29,T30,T31,T32,T33,T34,T35,T36,T37,T38,T39,T40,T41) -> obj_00135#0002 | U27: =_xll.qlSchedule(U29,U30,U31,U32,U33,U34,U35,U36,U37,U38,U39,U40,U41) -> obj_0011a#0002 | V27: =_xll.qlSchedule(V29,V30,V31,V32,V33,V34,V35,V36,V37,V38,V39,V40,V41) -> obj_00130#0002
E28: Error | F28: =_xll.ohRangeRetrieveError(F27) ->  | G28: =_xll.ohRangeRetrieveError(G27) ->  | H28: =_xll.ohRangeRetrieveError(H27) ->  | I28: =_xll.ohRangeRetrieveError(I27) ->  | J28: =_xll.ohRangeRetrieveError(J27) ->  | K28: =_xll.ohRangeRetrieveError(K27) ->  | L28: =_xll.ohRangeRetrieveError(L27) ->  | M28: =_xll.ohRangeRetrieveError(M27) ->  | N28: =_xll.ohRangeRetrieveError(N27) ->  | O28: =_xll.ohRangeRetrieveError(O27) ->  | P28: =_xll.ohRangeRetrieveError(P27) ->  | Q28: =_xll.ohRangeRetrieveError(Q27) ->  | R28: =_xll.ohRangeRetrieveError(R27) ->  | S28: =_xll.ohRangeRetrieveError(S27) ->  | T28: =_xll.ohRangeRetrieveError(T27) ->  | U28: =_xll.ohRangeRetrieveError(U27) ->  | V28: =_xll.ohRangeRetrieveError(V27) -> 
E29: ObjectID
E30: EffectiveDate | F30: =TRANSPOSE('NTN-B (Anbima)'!$B$6:$B$22) -> 2000-07-15 | G30: 2000-07-15 | H30: 2000-07-15 | I30: 2000-07-15 | J30: 2000-07-15 | K30: 2000-07-15 | L30: 2000-07-15 | M30: 2000-07-15 | N30: 2000-07-15 | O30: 2000-07-15 | P30: 2000-07-15 | Q30: 2000-07-15 | R30: 2000-07-15 | S30: 2000-07-15 | T30: 2000-07-15 | U30: 2000-07-15 | V30: 2000-07-15
E31: TerminationDate | F31: =TRANSPOSE('NTN-B (Anbima)'!$C$6:$C$22) -> 2011-11-15 | G31: 2012-08-15 | H31: 2013-05-15 | I31: 2014-08-15 | J31: 2015-05-15 | K31: 2016-08-15 | L31: 2017-05-15 | M31: 2018-08-15 | N31: 2020-08-15 | O31: 2022-08-15 | P31: 2023-03-15 | Q31: 2024-08-15 | R31: 2030-08-15 | S31: 2035-05-15 | T31: 2040-08-15 | U31: 2045-05-15 | V31: 2050-08-15
E32: Tenor | F32: 6M | G32: 6M | H32: 6M | I32: 6M | J32: 6M | K32: 6M | L32: 6M | M32: 6M | N32: 6M | O32: 6M | P32: 6M | Q32: 6M | R32: 6M | S32: 6M | T32: 6M | U32: 6M | V32: 6M
E33: Calendar | F33: Brazil::Settlement | G33: Brazil::Settlement | H33: Brazil::Settlement | I33: Brazil::Settlement | J33: Brazil::Settlement | K33: Brazil::Settlement | L33: Brazil::Settlement | M33: Brazil::Settlement | N33: Brazil::Settlement | O33: Brazil::Settlement | P33: Brazil::Settlement | Q33: Brazil::Settlement | R33: Brazil::Settlement | S33: Brazil::Settlement | T33: Brazil::Settlement | U33: Brazil::Settlement | V33: Brazil::Settlement
E34: Convention
E35: TermDateConv
E36: GenRule | F36: Backward | G36: Backward | H36: Backward | I36: Backward | J36: Backward | K36: Backward | L36: Backward | M36: Backward | N36: Backward | O36: Backward | P36: Backward | Q36: Backward | R36: Backward | S36: Backward | T36: Backward | U36: Backward | V36: Backward
E37: EndOfMonth
E38: FirstDate
E39: NextToLastDate
E40: Permanent
E41: Trigger
E43: Rate | F43: =TRANSPOSE('NTN-B (Anbima)'!$F$6:$F$22)/100 -> 0.04864 | G43: 0.039213 | H43: 0.041399 | I43: 0.047401 | J43: 0.04979 | K43: 0.052081 | L43: 0.05201 | M43: 0.053613 | N43: 0.054596 | O43: 0.054598 | P43: 0.054719 | Q43: 0.054925 | R43: 0.055472 | S43: 0.055443 | T43: 0.055715 | U43: 0.055721 | V43: 0.055992
E44: DayCounter | F44: Business252 | G44: Business252 | H44: Business252 | I44: Business252 | J44: Business252 | K44: Business252 | L44: Business252 | M44: Business252 | N44: Business252 | O44: Business252 | P44: Business252 | Q44: Business252 | R44: Business252 | S44: Business252 | T44: Business252 | U44: Business252 | V44: Business252
E45: Compounding | F45: Compounded | G45: Compounded | H45: Compounded | I45: Compounded | J45: Compounded | K45: Compounded | L45: Compounded | M45: Compounded | N45: Compounded | O45: Compounded | P45: Compounded | Q45: Compounded | R45: Compounded | S45: Compounded | T45: Compounded | U45: Compounded | V45: Compounded
E46: Frequency | F46: Annual | G46: Annual | H46: Annual | I46: Annual | J46: Annual | K46: Annual | L46: Annual | M46: Annual | N46: Annual | O46: Annual | P46: Annual | Q46: Annual | R46: Annual | S46: Annual | T46: Annual | U46: Annual | V46: Annual
E48: Clean Price | F48: =_xll.qlBondCleanPriceFromYield(F5,F43,F44,F45,F46,$F$2) -> 100.0278349 | G48: =_xll.qlBondCleanPriceFromYield(G5,G43,G44,G45,G46,$F$2) -> 101.5073899 | H48: =_xll.qlBondCleanPriceFromYield(H5,H43,H44,H45,H46,$F$2) -> 102.6936199 | I48: =_xll.qlBondCleanPriceFromYield(I5,I43,I44,I45,I46,$F$2) -> 103.177185 | J48: =_xll.qlBondCleanPriceFromYield(J5,J43,J44,J45,J46,$F$2) -> 103.2211158 | K48: =_xll.qlBondCleanPriceFromYield(K5,K43,K44,K45,K46,$F$2) -> 103.2680513 | L48: =_xll.qlBondCleanPriceFromYield(L5,L43,L44,L45,L46,$F$2) -> 103.7918643 | M48: =_xll.qlBondCleanPriceFromYield(M5,M43,M44,M45,M46,$F$2) -> 103.590373 | N48: =_xll.qlBondCleanPriceFromYield(N5,N43,N44,N45,N46,$F$2) -> 103.7453916 | O48: =_xll.qlBondCleanPriceFromYield(O5,O43,O44,O45,O46,$F$2) -> 104.4006066 | P48: =_xll.qlBondCleanPriceFromYield(P5,P43,P44,P45,P46,$F$2) -> 104.4876784 | Q48: =_xll.qlBondCleanPriceFromYield(Q5,Q43,Q44,Q45,Q46,$F$2) -> 104.6805282 | R48: =_xll.qlBondCleanPriceFromYield(R5,R43,R44,R45,R46,$F$2) -> 105.3537603 | S48: =_xll.qlBondCleanPriceFromYield(S5,S43,S44,S45,S46,$F$2) -> 106.0950534 | T48: =_xll.qlBondCleanPriceFromYield(T5,T43,T44,T45,T46,$F$2) -> 106.2479307 | U48: =_xll.qlBondCleanPriceFromYield(U5,U43,U44,U45,U46,$F$2) -> 106.6450799 | V48: =_xll.qlBondCleanPriceFromYield(V5,V43,V44,V45,V46,$F$2) -> 106.4999676
E49: BondHelper | F49: =_xll.qlBondHelper(,F48,F5) -> obj_000fc#0003 | G49: =_xll.qlBondHelper(,G48,G5) -> obj_000fa#0003 | H49: =_xll.qlBondHelper(,H48,H5) -> obj_000f9#0003 | I49: =_xll.qlBondHelper(,I48,I5) -> obj_00138#0002 | J49: =_xll.qlBondHelper(,J48,J5) -> obj_00149#0002 | K49: =_xll.qlBondHelper(,K48,K5) -> obj_0014b#0002 | L49: =_xll.qlBondHelper(,L48,L5) -> obj_00145#0002 | M49: =_xll.qlBondHelper(,M48,M5) -> obj_0013a#0002 | N49: =_xll.qlBondHelper(,N48,N5) -> obj_00146#0002 | O49: =_xll.qlBondHelper(,O48,O5) -> obj_00147#0002 | P49: =_xll.qlBondHelper(,P48,P5) -> obj_0014e#0002 | Q49: =_xll.qlBondHelper(,Q48,Q5) -> obj_00137#0002 | R49: =_xll.qlBondHelper(,R48,R5) -> obj_0014d#0002 | S49: =_xll.qlBondHelper(,S48,S5) -> obj_0014c#0002 | T49: =_xll.qlBondHelper(,T48,T5) -> obj_00148#0002 | U49: =_xll.qlBondHelper(,U48,U5) -> obj_00139#0002 | V49: =_xll.qlBondHelper(,V48,V5) -> obj_0014a#0002
E51: Yield Curve | F51: =_xll.qlPiecewiseYieldCurve(,,F53,F49:V49,F54,,,,F55,F56) -> obj_000fd#0004
E52: Error | F52: =_xll.ohRangeRetrieveError(F51) -> 
E53: Calendar | F53: Brazil::Settlement
E54: DayCounter | F54: Business252
F55: Discount
E56: Interpolator | F56: LogLinear
E58: DayCounter | F58: Business252
E59: Compounding | F59: Compounded
E60: Frequency | F60: Annual
E61: =_xll.qlPiecewiseYieldCurveDates(F51) -> 2011-11-11 | F61: =_xll.qlYieldTSZeroRate($F$51,E61,$F$58,$F$59,$F$60) -> 0.04864000007
E62: 2011-11-16 | F62: =_xll.qlYieldTSZeroRate($F$51,E62,$F$58,$F$59,$F$60) -> 0.04864000007
E63: 2012-08-15 | F63: =_xll.qlYieldTSZeroRate($F$51,E63,$F$58,$F$59,$F$60) -> 0.03921113645
E64: 2013-05-15 | F64: =_xll.qlYieldTSZeroRate($F$51,E64,$F$58,$F$59,$F$60) -> 0.04144052764
E65: 2014-08-15 | F65: =_xll.qlYieldTSZeroRate($F$51,E65,$F$58,$F$59,$F$60) -> 0.04769625574
E66: 2015-05-15 | F66: =_xll.qlYieldTSZeroRate($F$51,E66,$F$58,$F$59,$F$60) -> 0.05021998462
E67: 2016-08-15 | F67: =_xll.qlYieldTSZeroRate($F$51,E67,$F$58,$F$59,$F$60) -> 0.05265549363
E68: 2017-05-15 | F68: =_xll.qlYieldTSZeroRate($F$51,E68,$F$58,$F$59,$F$60) -> 0.05249065135
E69: 2018-08-15 | F69: =_xll.qlYieldTSZeroRate($F$51,E69,$F$58,$F$59,$F$60) -> 0.05429331554
E70: 2020-08-17 | F70: =_xll.qlYieldTSZeroRate($F$51,E70,$F$58,$F$59,$F$60) -> 0.05534335478
E71: 2022-08-15 | F71: =_xll.qlYieldTSZeroRate($F$51,E71,$F$58,$F$59,$F$60) -> 0.05520077496
E72: 2023-03-15 | F72: =_xll.qlYieldTSZeroRate($F$51,E72,$F$58,$F$59,$F$60) -> 0.05533699736
E73: 2024-08-15 | F73: =_xll.qlYieldTSZeroRate($F$51,E73,$F$58,$F$59,$F$60) -> 0.0555574163
E74: 2030-08-15 | F74: =_xll.qlYieldTSZeroRate($F$51,E74,$F$58,$F$59,$F$60) -> 0.05616833316
E75: 2035-05-15 | F75: =_xll.qlYieldTSZeroRate($F$51,E75,$F$58,$F$59,$F$60) -> 0.05596332671
E76: 2040-08-15 | F76: =_xll.qlYieldTSZeroRate($F$51,E76,$F$58,$F$59,$F$60) -> 0.05645054512
E77: 2045-05-15 | F77: =_xll.qlYieldTSZeroRate($F$51,E77,$F$58,$F$59,$F$60) -> 0.05635065755
E78: 2050-08-15 | F78: =_xll.qlYieldTSZeroRate($F$51,E78,$F$58,$F$59,$F$60) -> 0.05711049279
F79: =_xll.qlYieldTSZeroRate($F$51,E79,$F$58,$F$59,$F$60) -> 
B81: Price Test from YTM | E81: Yield | F81: =TRANSPOSE('NTN-B (Anbima)'!$F$6:$F$22)/100 -> 0.04864 | G81: 0.039213 | H81: 0.041399 | I81: 0.047401 | J81: 0.04979 | K81: 0.052081 | L81: 0.05201 | M81: 0.053613 | N81: 0.054596 | O81: 0.054598 | P81: 0.054719 | Q81: 0.054925 | R81: 0.055472 | S81: 0.055443 | T81: 0.055715 | U81: 0.055721 | V81: 0.055992
E82: Clean Price | F82: =_xll.qlBondCleanPriceFromYield(F5,F43,F44,F45,F46,$F$2) -> 100.0278349 | G82: =_xll.qlBondCleanPriceFromYield(G5,G43,G44,G45,G46,$F$2) -> 101.5073899 | H82: =_xll.qlBondCleanPriceFromYield(H5,H43,H44,H45,H46,$F$2) -> 102.6936199 | I82: =_xll.qlBondCleanPriceFromYield(I5,I43,I44,I45,I46,$F$2) -> 103.177185 | J82: =_xll.qlBondCleanPriceFromYield(J5,J43,J44,J45,J46,$F$2) -> 103.2211158 | K82: =_xll.qlBondCleanPriceFromYield(K5,K43,K44,K45,K46,$F$2) -> 103.2680513 | L82: =_xll.qlBondCleanPriceFromYield(L5,L43,L44,L45,L46,$F$2) -> 103.7918643 | M82: =_xll.qlBondCleanPriceFromYield(M5,M43,M44,M45,M46,$F$2) -> 103.590373 | N82: =_xll.qlBondCleanPriceFromYield(N5,N43,N44,N45,N46,$F$2) -> 103.7453916 | O82: =_xll.qlBondCleanPriceFromYield(O5,O43,O44,O45,O46,$F$2) -> 104.4006066 | P82: =_xll.qlBondCleanPriceFromYield(P5,P43,P44,P45,P46,$F$2) -> 104.4876784 | Q82: =_xll.qlBondCleanPriceFromYield(Q5,Q43,Q44,Q45,Q46,$F$2) -> 104.6805282 | R82: =_xll.qlBondCleanPriceFromYield(R5,R43,R44,R45,R46,$F$2) -> 105.3537603 | S82: =_xll.qlBondCleanPriceFromYield(S5,S43,S44,S45,S46,$F$2) -> 106.0950534 | T82: =_xll.qlBondCleanPriceFromYield(T5,T43,T44,T45,T46,$F$2) -> 106.2479307 | U82: =_xll.qlBondCleanPriceFromYield(U5,U43,U44,U45,U46,$F$2) -> 106.6450799 | V82: =_xll.qlBondCleanPriceFromYield(V5,V43,V44,V45,V46,$F$2) -> 106.4999676
E83: Accrued Amount | F83: =_xll.qlBondAccruedAmount(F$5) -> 2.889665747 | G83: =_xll.qlBondAccruedAmount(G5) -> 1.401712615 | H83: =_xll.qlBondAccruedAmount(H5) -> 2.889665747 | I83: =_xll.qlBondAccruedAmount(I5) -> 1.401712615 | J83: =_xll.qlBondAccruedAmount(J5) -> 2.889665747 | K83: =_xll.qlBondAccruedAmount(K5) -> 1.401712615 | L83: =_xll.qlBondAccruedAmount(L5) -> 2.889665747 | M83: =_xll.qlBondAccruedAmount(M5) -> 1.401712615 | N83: =_xll.qlBondAccruedAmount(N5) -> 1.401712615 | O83: =_xll.qlBondAccruedAmount(O5) -> 1.401712615 | P83: =_xll.qlBondAccruedAmount(P5) -> 0.9105255292 | Q83: =_xll.qlBondAccruedAmount(Q5) -> 1.401712615 | R83: =_xll.qlBondAccruedAmount(R5) -> 1.401712615 | S83: =_xll.qlBondAccruedAmount(S5) -> 2.889665747 | T83: =_xll.qlBondAccruedAmount(T5) -> 1.401712615 | U83: =_xll.qlBondAccruedAmount(U5) -> 2.889665747 | V83: =_xll.qlBondAccruedAmount(V5) -> 1.401712615
E84: Anbima | F84: =TRANSPOSE('NTN-B (Anbima)'!$G$6:$G$22) -> 2146.69134 | G84: 2146.51613 | H84: 2202.293498 | I84: 2181.343351 | J84: 2213.296289 | K84: 2183.239377 | L84: 2225.202247 | M84: 2189.96203 | N84: 2193.195077 | O84: 2206.863567 | P84: 2198.432614 | Q84: 2212.701825 | R84: 2226.74368 | S84: 2273.243245 | T84: 2245.395235 | U84: 2284.715349 | V84: 2250.651544
E85: QuantLibXL | F85: =(F82+F83)*(_xll.qlBondNotional(F$5)/100) -> 2146.691355 | G85: =(G82+G83)*(_xll.qlBondNotional(G$5)/100) -> 2146.516183 | H85: =(H82+H83)*(_xll.qlBondNotional(H$5)/100) -> 2202.295285 | I85: =(I82+I83)*(_xll.qlBondNotional(I$5)/100) -> 2181.345387 | J85: =(J82+J83)*(_xll.qlBondNotional(J$5)/100) -> 2213.297991 | K85: =(K82+K83)*(_xll.qlBondNotional(K$5)/100) -> 2183.240711 | L85: =(L82+L83)*(_xll.qlBondNotional(L$5)/100) -> 2225.202875 | M85: =(M82+M83)*(_xll.qlBondNotional(M$5)/100) -> 2189.963815 | N85: =(N82+N83)*(_xll.qlBondNotional(N$5)/100) -> 2193.197251 | O85: =(O82+O83)*(_xll.qlBondNotional(O$5)/100) -> 2206.863969 | P85: =(P82+P83)*(_xll.qlBondNotional(P$5)/100) -> 2198.434781 | Q85: =(Q82+Q83)*(_xll.qlBondNotional(Q$5)/100) -> 2212.702677 | R85: =(R82+R83)*(_xll.qlBondNotional(R$5)/100) -> 2226.745201 | S85: =(S82+S83)*(_xll.qlBondNotional(S$5)/100) -> 2273.243645 | T85: =(T82+T83)*(_xll.qlBondNotional(T$5)/100) -> 2245.396139 | U85: =(U82+U83)*(_xll.qlBondNotional(U$5)/100) -> 2284.716303 | V85: =(V82+V83)*(_xll.qlBondNotional(V$5)/100) -> 2250.653218
E86: Test | F86: =F85-F84 -> 1.46300049e-05 | G86: 5.343719795e-05 | H86: 0.001787002589 | I86: =I85-I84 -> 0.002035658976 | J86: 0.001701973445 | K86: 0.001334307319 | L86: 0.0006278794945 | M86: 0.001785091803 | N86: 0.002174391696 | O86: 0.000402172107 | P86: 0.002167349441 | Q86: 0.0008518814752 | R86: 0.001521466006 | S86: 0.0003998792336 | T86: 0.0009044954072 | U86: 0.0009536092166 | V86: 0.001674022978
B88: Price Test from Yield Curve | E88: Clean Price | F88: =_xll.qlBondCleanPriceFromYieldTermStructure(F5,$F$51,$F$2) -> 100.0278349 | G88: =_xll.qlBondCleanPriceFromYieldTermStructure(G5,$F$51,$F$2) -> 101.5073899 | H88: =_xll.qlBondCleanPriceFromYieldTermStructure(H5,$F$51,$F$2) -> 102.6936199 | I88: =_xll.qlBondCleanPriceFromYieldTermStructure(I5,$F$51,$F$2) -> 103.1771849 | J88: =_xll.qlBondCleanPriceFromYieldTermStructure(J5,$F$51,$F$2) -> 103.2211158 | K88: =_xll.qlBondCleanPriceFromYieldTermStructure(K5,$F$51,$F$2) -> 103.2680513 | L88: =_xll.qlBondCleanPriceFromYieldTermStructure(L5,$F$51,$F$2) -> 103.7918643 | M88: =_xll.qlBondCleanPriceFromYieldTermStructure(M5,$F$51,$F$2) -> 103.590373 | N88: =_xll.qlBondCleanPriceFromYieldTermStructure(N5,$F$51,$F$2) -> 103.7453916 | O88: =_xll.qlBondCleanPriceFromYieldTermStructure(O5,$F$51,$F$2) -> 104.4006066 | P88: =_xll.qlBondCleanPriceFromYieldTermStructure(P5,$F$51,$F$2) -> 104.4876784 | Q88: =_xll.qlBondCleanPriceFromYieldTermStructure(Q5,$F$51,$F$2) -> 104.6805282 | R88: =_xll.qlBondCleanPriceFromYieldTermStructure(R5,$F$51,$F$2) -> 105.3537603 | S88: =_xll.qlBondCleanPriceFromYieldTermStructure(S5,$F$51,$F$2) -> 106.0950534 | T88: =_xll.qlBondCleanPriceFromYieldTermStructure(T5,$F$51,$F$2) -> 106.2479307 | U88: =_xll.qlBondCleanPriceFromYieldTermStructure(U5,$F$51,$F$2) -> 106.6450799 | V88: =_xll.qlBondCleanPriceFromYieldTermStructure(V5,$F$51,$F$2) -> 106.4999676
E89: Accrued Amount | F89: =_xll.qlBondAccruedAmount(F5) -> 2.889665747 | G89: =_xll.qlBondAccruedAmount(G5) -> 1.401712615 | H89: =_xll.qlBondAccruedAmount(H5) -> 2.889665747 | I89: =_xll.qlBondAccruedAmount(I5) -> 1.401712615 | J89: =_xll.qlBondAccruedAmount(J5) -> 2.889665747 | K89: =_xll.qlBondAccruedAmount(K5) -> 1.401712615 | L89: =_xll.qlBondAccruedAmount(L5) -> 2.889665747 | M89: =_xll.qlBondAccruedAmount(M5) -> 1.401712615 | N89: =_xll.qlBondAccruedAmount(N5) -> 1.401712615 | O89: =_xll.qlBondAccruedAmount(O5) -> 1.401712615 | P89: =_xll.qlBondAccruedAmount(P5) -> 0.9105255292 | Q89: =_xll.qlBondAccruedAmount(Q5) -> 1.401712615 | R89: =_xll.qlBondAccruedAmount(R5) -> 1.401712615 | S89: =_xll.qlBondAccruedAmount(S5) -> 2.889665747 | T89: =_xll.qlBondAccruedAmount(T5) -> 1.401712615 | U89: =_xll.qlBondAccruedAmount(U5) -> 2.889665747 | V89: =_xll.qlBondAccruedAmount(V5) -> 1.401712615
E90: Anbima | F90: =TRANSPOSE('NTN-B (Anbima)'!$G$6:$G$22) -> 2146.69134 | G90: 2146.51613 | H90: 2202.293498 | I90: 2181.343351 | J90: 2213.296289 | K90: 2183.239377 | L90: 2225.202247 | M90: 2189.96203 | N90: 2193.195077 | O90: 2206.863567 | P90: 2198.432614 | Q90: 2212.701825 | R90: 2226.74368 | S90: 2273.243245 | T90: 2245.395235 | U90: 2284.715349 | V90: 2250.651544
E91: QuantLibXL | F91: =(F88+F89)*(_xll.qlBondNotional(F$5)/100) -> 2146.691355 | G91: =(G88+G89)*(_xll.qlBondNotional(G$5)/100) -> 2146.516183 | H91: =(H88+H89)*(_xll.qlBondNotional(H$5)/100) -> 2202.295285 | I91: =(I88+I89)*(_xll.qlBondNotional(I$5)/100) -> 2181.345387 | J91: =(J88+J89)*(_xll.qlBondNotional(J$5)/100) -> 2213.297991 | K91: =(K88+K89)*(_xll.qlBondNotional(K$5)/100) -> 2183.240711 | L91: =(L88+L89)*(_xll.qlBondNotional(L$5)/100) -> 2225.202875 | M91: =(M88+M89)*(_xll.qlBondNotional(M$5)/100) -> 2189.963815 | N91: =(N88+N89)*(_xll.qlBondNotional(N$5)/100) -> 2193.197251 | O91: =(O88+O89)*(_xll.qlBondNotional(O$5)/100) -> 2206.863969 | P91: =(P88+P89)*(_xll.qlBondNotional(P$5)/100) -> 2198.434781 | Q91: =(Q88+Q89)*(_xll.qlBondNotional(Q$5)/100) -> 2212.702677 | R91: =(R88+R89)*(_xll.qlBondNotional(R$5)/100) -> 2226.745201 | S91: =(S88+S89)*(_xll.qlBondNotional(S$5)/100) -> 2273.243645 | T91: =(T88+T89)*(_xll.qlBondNotional(T$5)/100) -> 2245.396139 | U91: =(U88+U89)*(_xll.qlBondNotional(U$5)/100) -> 2284.716303 | V91: =(V88+V89)*(_xll.qlBondNotional(V$5)/100) -> 2250.653218
E92: Test | F92: =F91-F90 -> 1.462893078e-05 | G92: 5.343611292e-05 | H92: 0.001787002589 | I92: =I91-I90 -> 0.002035657876 | J92: 0.001701974529 | K92: 0.001334306219 | L92: 0.0006278794945 | M92: 0.001785090704 | N92: 0.002174391095 | O92: 0.0004021714326 | P92: 0.00216734869 | Q92: 0.0008518803725 | R92: 0.001521466006 | S92: 0.0003998781299 | T92: 0.0009044947669 | U92: 0.0009536080638 | V92: 0.00167402209
B94: Yield Test From Anbima Price | E94: Anbima | F94: =TRANSPOSE('NTN-B (Anbima)'!$G$6:$G$22) -> 2146.69134 | G94: 2146.51613 | H94: 2202.293498 | I94: 2181.343351 | J94: 2213.296289 | K94: 2183.239377 | L94: 2225.202247 | M94: 2189.96203 | N94: 2193.195077 | O94: 2206.863567 | P94: 2198.432614 | Q94: 2212.701825 | R94: 2226.74368 | S94: 2273.243245 | T94: 2245.395235 | U94: 2284.715349 | V94: 2250.651544
E95: Accrued Amount | F95: =_xll.qlBondAccruedAmount(F$5) -> 2.889665747 | G95: =_xll.qlBondAccruedAmount(G$5) -> 1.401712615 | H95: =_xll.qlBondAccruedAmount(H$5) -> 2.889665747 | I95: =_xll.qlBondAccruedAmount(I$5) -> 1.401712615 | J95: =_xll.qlBondAccruedAmount(J$5) -> 2.889665747 | K95: =_xll.qlBondAccruedAmount(K$5) -> 1.401712615 | L95: =_xll.qlBondAccruedAmount(L$5) -> 2.889665747 | M95: =_xll.qlBondAccruedAmount(M$5) -> 1.401712615 | N95: =_xll.qlBondAccruedAmount(N$5) -> 1.401712615 | O95: =_xll.qlBondAccruedAmount(O$5) -> 1.401712615 | P95: =_xll.qlBondAccruedAmount(P$5) -> 0.9105255292 | Q95: =_xll.qlBondAccruedAmount(Q$5) -> 1.401712615 | R95: =_xll.qlBondAccruedAmount(R$5) -> 1.401712615 | S95: =_xll.qlBondAccruedAmount(S$5) -> 2.889665747 | T95: =_xll.qlBondAccruedAmount(T$5) -> 1.401712615 | U95: =_xll.qlBondAccruedAmount(U$5) -> 2.889665747 | V95: =_xll.qlBondAccruedAmount(V$5) -> 1.401712615
E96: Clean Price | F96: =F94/(_xll.qlBondNotional(F5)/100)-F95 -> 100.0278342 | G96: =G94/(_xll.qlBondNotional(G5)/100)-G95 -> 101.5073874 | H96: =H94/(_xll.qlBondNotional(H5)/100)-H95 -> 102.6935342 | I96: =I94/(_xll.qlBondNotional(I5)/100)-I95 -> 103.1770874 | J96: =J94/(_xll.qlBondNotional(J5)/100)-J95 -> 103.2210342 | K96: =K94/(_xll.qlBondNotional(K5)/100)-K95 -> 103.2679874 | L96: =L94/(_xll.qlBondNotional(L5)/100)-L95 -> 103.7918342 | M96: =M94/(_xll.qlBondNotional(M5)/100)-M95 -> 103.5902874 | N96: =N94/(_xll.qlBondNotional(N5)/100)-N95 -> 103.7452874 | O96: =O94/(_xll.qlBondNotional(O5)/100)-O95 -> 104.4005873 | P96: =P94/(_xll.qlBondNotional(P5)/100)-P95 -> 104.4875744 | Q96: =Q94/(_xll.qlBondNotional(Q5)/100)-Q95 -> 104.6804873 | R96: =R94/(_xll.qlBondNotional(R5)/100)-R95 -> 105.3536873 | S96: =S94/(_xll.qlBondNotional(S5)/100)-S95 -> 106.0950342 | T96: =T94/(_xll.qlBondNotional(T5)/100)-T95 -> 106.2478874 | U96: =U94/(_xll.qlBondNotional(U5)/100)-U95 -> 106.6450342 | V96: =V94/(_xll.qlBondNotional(V5)/100)-V95 -> 106.4998873
E97: Yield | F97: =TRANSPOSE('NTN-B (Anbima)'!$F$6:$F$22)/100 -> 0.04864 | G97: 0.039213 | H97: 0.041399 | I97: 0.047401 | J97: 0.04979 | K97: 0.052081 | L97: 0.05201 | M97: 0.053613 | N97: 0.054596 | O97: 0.054598 | P97: 0.054719 | Q97: 0.054925 | R97: 0.055472 | S97: 0.055443 | T97: 0.055715 | U97: 0.055721 | V97: 0.055992
E98: QuantLibXL | F98: =_xll.qlBondYieldFromCleanPrice(F5,F96,F44,F45,F46,$F$2) -> 0.04864090052 | G98: =_xll.qlBondYieldFromCleanPrice(G5,G96,G44,G45,G46,$F$2) -> 0.03921303462 | H98: =_xll.qlBondYieldFromCleanPrice(H5,H96,H44,H45,H46,$F$2) -> 0.04139959759 | I98: =_xll.qlBondYieldFromCleanPrice(I5,I96,I44,I45,I46,$F$2) -> 0.04740138309 | J98: =_xll.qlBondYieldFromCleanPrice(J5,J96,J44,J45,J46,$F$2) -> 0.04979025789 | K98: =_xll.qlBondYieldFromCleanPrice(K5,K96,K44,K45,K46,$F$2) -> 0.05208115436 | L98: =_xll.qlBondYieldFromCleanPrice(L5,L96,L44,L45,L46,$F$2) -> 0.0520100639 | M98: =_xll.qlBondYieldFromCleanPrice(M5,M96,M44,M45,M46,$F$2) -> 0.05361315332 | N98: =_xll.qlBondYieldFromCleanPrice(N5,N96,N44,N45,N46,$F$2) -> 0.05459615178 | O98: =_xll.qlBondYieldFromCleanPrice(O5,O96,O44,O45,O46,$F$2) -> 0.05459802397 | P98: =_xll.qlBondYieldFromCleanPrice(P5,P96,P44,P45,P46,$F$2) -> 0.05471912391 | Q98: =_xll.qlBondYieldFromCleanPrice(Q5,Q96,Q44,Q45,Q46,$F$2) -> 0.0549250447 | R98: =_xll.qlBondYieldFromCleanPrice(R5,R96,R44,R45,R46,$F$2) -> 0.05547206218 | S98: =_xll.qlBondYieldFromCleanPrice(S5,S96,S44,S45,S46,$F$2) -> 0.05544301441 | T98: =_xll.qlBondYieldFromCleanPrice(T5,T96,T44,T45,T46,$F$2) -> 0.05571502972 | U98: =_xll.qlBondYieldFromCleanPrice(U5,U96,U44,U45,U46,$F$2) -> 0.05572102927 | V98: =_xll.qlBondYieldFromCleanPrice(V5,V96,V44,V45,V46,$F$2) -> 0.05599204928
E99: Test | F99: =F98-F97 -> 9.005150199e-07 | G99: 3.462125363e-08 | H99: 5.97587809e-07 | I99: =I98-I97 -> 3.830944896e-07 | J99: 2.578935027e-07 | K99: 1.543613672e-07 | L99: 6.390154363e-08 | M99: 1.533235311e-07 | N99: 1.517840624e-07 | O99: 2.396595478e-08 | P99: 1.239148378e-07 | Q99: 4.470050335e-08 | R99: 6.217795611e-08 | S99: 1.440566778e-08 | T99: 2.972394228e-08 | U99: 2.927416564e-08 | V99: 4.928427934e-08
B101: Yield Test From Yield Curve | E101: Clean Price | F101: =_xll.qlBondCleanPriceFromYieldTermStructure(F5,$F$51,$F$2) -> 100.0278349 | G101: =_xll.qlBondCleanPriceFromYieldTermStructure(G5,$F$51,$F$2) -> 101.5073899 | H101: =_xll.qlBondCleanPriceFromYieldTermStructure(H5,$F$51,$F$2) -> 102.6936199 | I101: =_xll.qlBondCleanPriceFromYieldTermStructure(I5,$F$51,$F$2) -> 103.1771849 | J101: =_xll.qlBondCleanPriceFromYieldTermStructure(J5,$F$51,$F$2) -> 103.2211158 | K101: =_xll.qlBondCleanPriceFromYieldTermStructure(K5,$F$51,$F$2) -> 103.2680513 | L101: =_xll.qlBondCleanPriceFromYieldTermStructure(L5,$F$51,$F$2) -> 103.7918643 | M101: =_xll.qlBondCleanPriceFromYieldTermStructure(M5,$F$51,$F$2) -> 103.590373 | N101: =_xll.qlBondCleanPriceFromYieldTermStructure(N5,$F$51,$F$2) -> 103.7453916 | O101: =_xll.qlBondCleanPriceFromYieldTermStructure(O5,$F$51,$F$2) -> 104.4006066 | P101: =_xll.qlBondCleanPriceFromYieldTermStructure(P5,$F$51,$F$2) -> 104.4876784 | Q101: =_xll.qlBondCleanPriceFromYieldTermStructure(Q5,$F$51,$F$2) -> 104.6805282 | R101: =_xll.qlBondCleanPriceFromYieldTermStructure(R5,$F$51,$F$2) -> 105.3537603 | S101: =_xll.qlBondCleanPriceFromYieldTermStructure(S5,$F$51,$F$2) -> 106.0950534 | T101: =_xll.qlBondCleanPriceFromYieldTermStructure(T5,$F$51,$F$2) -> 106.2479307 | U101: =_xll.qlBondCleanPriceFromYieldTermStructure(U5,$F$51,$F$2) -> 106.6450799 | V101: =_xll.qlBondCleanPriceFromYieldTermStructure(V5,$F$51,$F$2) -> 106.4999676
E102: Yield | F102: =TRANSPOSE('NTN-B (Anbima)'!$F$6:$F$22)/100 -> 0.04864 | G102: 0.039213 | H102: 0.041399 | I102: 0.047401 | J102: 0.04979 | K102: 0.052081 | L102: 0.05201 | M102: 0.053613 | N102: 0.054596 | O102: 0.054598 | P102: 0.054719 | Q102: 0.054925 | R102: 0.055472 | S102: 0.055443 | T102: 0.055715 | U102: 0.055721 | V102: 0.055992
E103: QuantLibXL | F103: =_xll.qlBondYieldFromCleanPrice(F5,F101,F44,F45,F46,$F$2) -> 0.04864000013 | G103: =_xll.qlBondYieldFromCleanPrice(G5,G101,G44,G45,G46,$F$2) -> 0.03921299999 | H103: =_xll.qlBondYieldFromCleanPrice(H5,H101,H44,H45,H46,$F$2) -> 0.041399 | I103: =_xll.qlBondYieldFromCleanPrice(I5,I101,I44,I45,I46,$F$2) -> 0.04740099993 | J103: =_xll.qlBondYieldFromCleanPrice(J5,J101,J44,J45,J46,$F$2) -> 0.04979000006 | K103: =_xll.qlBondYieldFromCleanPrice(K5,K101,K44,K45,K46,$F$2) -> 0.05208099999 | L103: =_xll.qlBondYieldFromCleanPrice(L5,L101,L44,L45,L46,$F$2) -> 0.05200999998 | M103: =_xll.qlBondYieldFromCleanPrice(M5,M101,M44,M45,M46,$F$2) -> 0.05361299999 | N103: =_xll.qlBondYieldFromCleanPrice(N5,N101,N44,N45,N46,$F$2) -> 0.05459599994 | O103: =_xll.qlBondYieldFromCleanPrice(O5,O101,O44,O45,O46,$F$2) -> 0.05459799998 | P103: =_xll.qlBondYieldFromCleanPrice(P5,P101,P44,P45,P46,$F$2) -> 0.05471899994 | Q103: =_xll.qlBondYieldFromCleanPrice(Q5,Q101,Q44,Q45,Q46,$F$2) -> 0.054925 | R103: =_xll.qlBondYieldFromCleanPrice(R5,R101,R44,R45,R46,$F$2) -> 0.055472 | S103: =_xll.qlBondYieldFromCleanPrice(S5,S101,S44,S45,S46,$F$2) -> 0.05544300007 | T103: =_xll.qlBondYieldFromCleanPrice(T5,T101,T44,T45,T46,$F$2) -> 0.05571500009 | U103: =_xll.qlBondYieldFromCleanPrice(U5,U101,U44,U45,U46,$F$2) -> 0.05572100002 | V103: =_xll.qlBondYieldFromCleanPrice(V5,V101,V44,V45,V46,$F$2) -> 0.05599200008
E104: Test | F104: =F103-F102 -> 1.272559211e-10 | G104: -5.319689134e-12 | H104: -3.889187583e-12 | I104: =I103-I102 -> -7.396935842e-11 | J104: 5.871057807e-11 | K104: -1.466274324e-11 | L104: -2.443788921e-11 | M104: -9.417529256e-12 | N104: -5.877017623e-11 | O104: -2.491475082e-11 | P104: -6.282329518e-11 | Q104: -2.980234115e-12 | R104: -4.589544023e-12 | S104: 7.075071778e-11 | T104: 8.553267816e-11 | U104: 2.31862099e-11 | V104: 8.064508783e-11

Sheet NTN-C (Anbima)
A1: Títulos Públicos Federais | K1: 2011-11-11
A3: Papel IGP-M | C3: NTN-C - Taxa (% a.a.)/252
A4: Código SELIC | B4: Data Base/Emissão | C4: Data de Vencimento | D4: Tx. Máxima | E4: Tx. Mínima | F4: Tx. Indicativas | G4: PU | H4: Intervalo Indicativo
H5: Mínimo (D0) | I5: Máximo (D0) | J5: Mínimo (D+1) | K5: Máximo (D+1)
A6: 770100 | B6: 2000-07-01 | C6: 2017-07-01 | D6: -- | E6: 5.1633 | F6: 5.5075 | G6: 2685.952272 | H6: 5.2014 | I6: 5.738 | J6: 5.2179 | K6: 5.7542
A7: 770100 | B7: 2000-07-01 | C7: 2021-04-01 | D7: -- | E7: -- | F7: 5.6311 | G7: 2657.530285 | H7: 5.3535 | I7: 5.9081 | J7: 5.3497 | K7: 5.9027
A8: 770100 | B8: 2000-07-01 | C8: 2031-01-01 | D8: -- | E8: -- | F8: 5.6065 | G8: 4532.754257 | H8: 5.3643 | I8: 5.839 | J8: 5.3577 | K8: 5.8315
A9: Quando uma taxa for interpolada será apresentada em negrito.
A10: Os preços unitários são calculados a partir da projeção para o IGP-M apurada pelo Comitê de Acompanhamento Macroeconômico da ANBIMA
A11: para o mês, à exceção do dia seguinte à divulgação do IGP-M final, caso em que é utilizado o próprio índice do mês corrente, divulgado pela FGV .
A12: Projeção IGP-M para Novembro:
A13: Média apurada pelo Comitê de Acompanhamento Macroeconômico da ANBIMA: 0,49%

Sheet NTN-C (QuantLibXL)
E2: Evaluation Date | F2: ='NTN-C (Anbima)'!K1 -> 2011-11-11
E3: Set Evaluation Date | F3: =_xll.qlSettingsSetEvaluationDate(F2) -> TRUE
E5: FixedRateBond2 | F5: =_xll.qlFixedRateBond2(,F8,F9,F10,F11,F12,F13,F14,F15,F16,F17) -> obj_000cd#0022 | G5: =_xll.qlFixedRateBond2(,G8,G9,G10,G11,G12,G13,G14,G15,G16,G17) -> obj_000c9#0016 | H5: =_xll.qlFixedRateBond2(,H8,H9,H10,H11,H12,H13,H14,H15,H16,H17) -> obj_000d0#0016
E6: Error | F6: =_xll.ohRangeRetrieveError(F5) ->  | G6: =_xll.ohRangeRetrieveError(G5) ->  | H6: =_xll.ohRangeRetrieveError(H5) -> 
E7: ObjectID
E8: Description | F8: LFT | G8: LFT | H8: LFT
E9: Currency | F9: BRL | G9: BRL | H9: BRL
E10: SettlementDays | F10: 0 | G10: 0 | H10: 0
E11: FaceAmount | F11: 2570.26466 | G11: 2570.26466 | H11: 2570.26466
E12: ScheduleID | F12: =F27 -> obj_000ee#0008 | G12: =G27 -> obj_000ef#0008 | H12: =H27 -> obj_000f0#0008
E13: Coupons | F13: =F20 -> obj_000ed#0004 | G13: =G20 -> obj_000ec#0004 | H13: =H20 -> obj_000eb#0004
E14: PaymentBDC | F14: Following | G14: Following | H14: Following
E15: Redemption | F15: 100 | G15: 100 | H15: 100
E16: IssueDate
E17: Calendar | F17: Brazil::Settlement | G17: Brazil::Settlement | H17: Brazil::Settlement
E18: Permanent
E20: InterestRate | F20: =_xll.qlInterestRate(,F22,F23,F24,F25) -> obj_000ed#0004 | G20: =_xll.qlInterestRate(,G22,G23,G24,G25) -> obj_000ec#0004 | H20: =_xll.qlInterestRate(,H22,H23,H24,H25) -> obj_000eb#0004
E21: Error | F21: =_xll.ohRangeRetrieveError(F20) ->  | G21: =_xll.ohRangeRetrieveError(G20) ->  | H21: =_xll.ohRangeRetrieveError(H20) -> 
E22: Coupon Rate | F22: 0.06 | G22: 0.06 | H22: 0.12
E23: DayCounter | F23: 30/360 | G23: 30/360 | H23: 30/360
E24: Compounding | F24: Compounded | G24: Compounded | H24: Compounded
E25: Frequency | F25: Annual | G25: Annual | H25: Annual
E27: Schedule | F27: =_xll.qlSchedule(F29,F30,F31,F32,F33,F34,F35,F36,F37,F38,F39,F40,F41) -> obj_000ee#0008 | G27: =_xll.qlSchedule(G29,G30,G31,G32,G33,G34,G35,G36,G37,G38,G39,G40,G41) -> obj_000ef#0008 | H27: =_xll.qlSchedule(H29,H30,H31,H32,H33,H34,H35,H36,H37,H38,H39,H40,H41) -> obj_000f0#0008
E28: Error | F28: =_xll.ohRangeRetrieveError(F27) ->  | G28: =_xll.ohRangeRetrieveError(G27) ->  | H28: =_xll.ohRangeRetrieveError(H27) -> 
E29: ObjectID
E30: EffectiveDate | F30: =TRANSPOSE('NTN-C (Anbima)'!$B$6:$B$8) -> 2000-07-01 | G30: 2000-07-01 | H30: 2000-07-01
E31: TerminationDate | F31: =TRANSPOSE('NTN-C (Anbima)'!$C$6:$C$8) -> 2017-07-01 | G31: 2021-04-01 | H31: 2031-01-01
E32: Tenor | F32: 6M | G32: 6M | H32: 6M
E33: Calendar | F33: Brazil::Settlement | G33: Brazil::Settlement | H33: Brazil::Settlement
E34: Convention
E35: TermDateConv
E36: GenRule | F36: Backward | G36: Backward | H36: Backward
E37: EndOfMonth
E38: FirstDate
E39: NextToLastDate
E40: Permanent
E41: Trigger
E43: Rate | F43: =TRANSPOSE('NTN-C (Anbima)'!$F$6:$F$8)/100 -> 0.055075 | G43: 0.056311 | H43: 0.056065
E44: DayCounter | F44: Business252 | G44: Business252 | H44: Business252
E45: Compounding | F45: Compounded | G45: Compounded | H45: Compounded
E46: Frequency | F46: Annual | G46: Annual | H46: Annual
E48: Clean Price | F48: =_xll.qlBondCleanPriceFromYield(F5,F43,F44,F45,F46,$F$2) -> 102.3745733 | G48: =_xll.qlBondCleanPriceFromYield(G5,G43,G44,G45,G46,$F$2) -> 102.745681 | H48: =_xll.qlBondCleanPriceFromYield(H5,H43,H44,H45,H46,$F$2) -> 172.1763768
E49: BondHelper | F49: =_xll.qlBondHelper(,F48,F5) -> obj_000df#0020 | G49: =_xll.qlBondHelper(,G48,G5) -> obj_000db#0018 | H49: =_xll.qlBondHelper(,H48,H5) -> obj_000e2#0019
E51: Yield Curve | F51: =_xll.qlPiecewiseYieldCurve(,,F53,F49:H49,F54,,,,F55,F56) -> obj_000ea#0017
E52: Error | F52: =_xll.ohRangeRetrieveError(F51) -> 
E53: Calendar | F53: Brazil::Settlement
E54: DayCounter | F54: Business252
F55: Discount
E56: Interpolator | F56: LogLinear
E58: DayCounter | F58: Business252
E59: Compounding | F59: Compounded
E60: Frequency | F60: Annual
E61: =_xll.qlPiecewiseYieldCurveDates(F51) -> 2011-11-11 | F61: =_xll.qlYieldTSZeroRate($F$51,E61,$F$58,$F$59,$F$60) -> 0.055075
E62: 2017-07-03 | F62: =_xll.qlYieldTSZeroRate($F$51,E62,$F$58,$F$59,$F$60) -> 0.055075
E63: 2021-04-01 | F63: =_xll.qlYieldTSZeroRate($F$51,E63,$F$58,$F$59,$F$60) -> 0.05654377435
E64: 2031-01-02 | F64: =_xll.qlYieldTSZeroRate($F$51,E64,$F$58,$F$59,$F$60) -> 0.05610248244
F65: =_xll.qlYieldTSZeroRate($F$51,E65,$F$58,$F$59,$F$60) -> 
F66: =_xll.qlYieldTSZeroRate($F$51,E66,$F$58,$F$59,$F$60) -> 
F67: =_xll.qlYieldTSZeroRate($F$51,E67,$F$58,$F$59,$F$60) -> 
F68: =_xll.qlYieldTSZeroRate($F$51,E68,$F$58,$F$59,$F$60) -> 
F69: =_xll.qlYieldTSZeroRate($F$51,E69,$F$58,$F$59,$F$60) -> 
F70: =_xll.qlYieldTSZeroRate($F$51,E70,$F$58,$F$59,$F$60) -> 
F71: =_xll.qlYieldTSZeroRate($F$51,E71,$F$58,$F$59,$F$60) -> 
F72: =_xll.qlYieldTSZeroRate($F$51,E72,$F$58,$F$59,$F$60) -> 
F73: =_xll.qlYieldTSZeroRate($F$51,E73,$F$58,$F$59,$F$60) -> 
F74: =_xll.qlYieldTSZeroRate($F$51,E74,$F$58,$F$59,$F$60) -> 
F75: =_xll.qlYieldTSZeroRate($F$51,E75,$F$58,$F$59,$F$60) -> 
F76: =_xll.qlYieldTSZeroRate($F$51,E76,$F$58,$F$59,$F$60) -> 
F77: =_xll.qlYieldTSZeroRate($F$51,E77,$F$58,$F$59,$F$60) -> 
F78: =_xll.qlYieldTSZeroRate($F$51,E78,$F$58,$F$59,$F$60) -> 
F79: =_xll.qlYieldTSZeroRate($F$51,E79,$F$58,$F$59,$F$60) -> 
B81: Price Test from YTM | E81: Yield | F81: =TRANSPOSE('NTN-C (Anbima)'!$F$6:$F$8)/100 -> 0.055075 | G81: 0.056311 | H81: 0.056065
E82: Clean Price | F82: =_xll.qlBondCleanPriceFromYield(F5,F43,F44,F45,F46,$F$2) -> 102.3745733 | G82: =_xll.qlBondCleanPriceFromYield(G5,G43,G44,G45,G46,$F$2) -> 102.745681 | H82: =_xll.qlBondCleanPriceFromYield(H5,H43,H44,H45,H46,$F$2) -> 172.1763768
E83: Accrued Amount | F83: =_xll.qlBondAccruedAmount(F$5) -> 2.126448445 | G83: =_xll.qlBondAccruedAmount(G5) -> 0.6495326859 | H83: =_xll.qlBondAccruedAmount(H5) -> 4.17731856
E84: Anbima | F84: =TRANSPOSE('NTN-C (Anbima)'!$G$6:$G$8) -> 2685.952272 | G84: 2657.530285 | H84: 4532.754257
E85: QuantLibXL | F85: =(F82+F83)*(_xll.qlBondNotional(F$5)/100) -> 2685.952832 | G85: =(G82+G83)*(_xll.qlBondNotional(G$5)/100) -> 2657.530639 | H85: =(H82+H83)*(_xll.qlBondNotional(H$5)/100) -> 4532.756707
E86: Test | F86: =F85-F84 -> 0.0005598723696 | G86: 0.000353581785 | H86: 0.002450210576
B88: Price Test from Yield Curve | E88: Clean Price | F88: =_xll.qlBondCleanPriceFromYieldTermStructure(F5,$F$51,$F$2) -> 102.3745733 | G88: =_xll.qlBondCleanPriceFromYieldTermStructure(G5,$F$51,$F$2) -> 102.745681 | H88: =_xll.qlBondCleanPriceFromYieldTermStructure(H5,$F$51,$F$2) -> 172.1763768
E89: Accrued Amount | F89: =_xll.qlBondAccruedAmount(F5) -> 2.126448445 | G89: =_xll.qlBondAccruedAmount(G5) -> 0.6495326859 | H89: =_xll.qlBondAccruedAmount(H5) -> 4.17731856
E90: Anbima | F90: =TRANSPOSE('NTN-C (Anbima)'!$G$6:$G$8) -> 2685.952272 | G90: 2657.530285 | H90: 4532.754257
E91: QuantLibXL | F91: =(F88+F89)*(_xll.qlBondNotional(F$5)/100) -> 2685.952832 | G91: =(G88+G89)*(_xll.qlBondNotional(G$5)/100) -> 2657.530639 | H91: =(H88+H89)*(_xll.qlBondNotional(H$5)/100) -> 4532.756707
E92: Test | F92: =F91-F90 -> 0.0005598723696 | G92: 0.0003535803298 | H92: 0.002450212775
B94: Yield Test From Anbima Price | E94: Anbima | F94: =TRANSPOSE('NTN-C (Anbima)'!$G$6:$G$8) -> 2685.952272 | G94: 2657.530285 | H94: 4532.754257
E95: Accrued Amount | F95: =_xll.qlBondAccruedAmount(F$5) -> 2.126448445 | G95: =_xll.qlBondAccruedAmount(G$5) -> 0.6495326859 | H95: =_xll.qlBondAccruedAmount(H$5) -> 4.17731856
E96: Clean Price | F96: =F94/(_xll.qlBondNotional(F5)/100)-F95 -> 102.3745515 | G96: =G94/(_xll.qlBondNotional(G5)/100)-G95 -> 102.7456673 | H96: =H94/(_xll.qlBondNotional(H5)/100)-H95 -> 172.1762814
E97: Yield | F97: =TRANSPOSE('NTN-C (Anbima)'!$F$6:$F$8)/100 -> 0.055075 | G97: 0.056311 | H97: 0.056065
E98: QuantLibXL | F98: =_xll.qlBondYieldFromCleanPrice(F5,F96,F44,F45,F46,$F$2) -> 0.055075046 | G98: =_xll.qlBondYieldFromCleanPrice(G5,G96,G44,G45,G46,$F$2) -> 0.0563110192 | H98: =_xll.qlBondYieldFromCleanPrice(H5,H96,H44,H45,H46,$F$2) -> 0.05606505624
E99: Test | F99: =F98-F97 -> 4.599541426e-08 | G99: 1.920455693e-08 | H99: 5.624204875e-08
B101: Yield Test From Yield Curve | E101: Clean Price | F101: =_xll.qlBondCleanPriceFromYieldTermStructure(F5,$F$51,$F$2) -> 102.3745733 | G101: =_xll.qlBondCleanPriceFromYieldTermStructure(G5,$F$51,$F$2) -> 102.745681 | H101: =_xll.qlBondCleanPriceFromYieldTermStructure(H5,$F$51,$F$2) -> 172.1763768
E102: Yield | F102: =TRANSPOSE('NTN-C (Anbima)'!$F$6:$F$8)/100 -> 0.055075 | G102: 0.056311 | H102: 0.056065
E103: QuantLibXL | F103: =_xll.qlBondYieldFromCleanPrice(F5,F101,F44,F45,F46,$F$2) -> 0.05507500008 | G103: =_xll.qlBondYieldFromCleanPrice(G5,G101,G44,G45,G46,$F$2) -> 0.05631100003 | H103: =_xll.qlBondYieldFromCleanPrice(H5,H101,H44,H45,H46,$F$2) -> 0.05606500006
E104: Test | F104: =F103-F102 -> 8.493662024e-11 | G104: 2.676248112e-11 | H104: 6.467103936e-11

Sheet LFT (Anbima)
A1: Títulos Públicos Federais | K1: 2011-11-11
A3: Papel POS-SELIC | C3: LFT - Rentabilidade (% a.a.)/252
A4: Código SELIC | B4: Data Base/Emissão | C4: Data de Vencimento | D4: Tx. Máxima | E4: Tx. Mínima | F4: Tx. Indicativas | G4: PU | H4: Intervalo Indicativo
H5: Mínimo (D0) | I5: Máximo (D0) | J5: Mínimo (D+1) | K5: Máximo (D+1)
A6: 210100 | B6: 2000-07-01 | C6: 2011-11-16 | D6: -- | E6: -0.0081 | F6: -0.0021 | G6: 4949.718915 | H6: -0.0052 | I6: 0.0016 | J6: -0.0054 | K6: 0.0015
A7: 210100 | B7: 2000-07-01 | C7: 2011-12-21 | D7: -- | E7: -0.0078 | F7: -0.0019 | G7: 4949.728814 | H7: -0.0052 | I7: 0.0015 | J7: -0.0052 | K7: 0.0013
A8: 210100 | B8: 2000-07-01 | C8: 2012-03-07 | D8: 0.0025 | E8: -0.0065 | F8: -0.0015 | G8: 4949.738713 | H8: -0.0052 | I8: 0.0016 | J8: -0.0053 | K8: 0.0016
A9: 210100 | B9: 2000-07-01 | C9: 2012-09-07 | D9: -- | E9: -0.0078 | F9: -0.0014 | G9: 4949.773361 | H9: -0.0047 | I9: 0.0015 | J9: -0.0044 | K9: 0.0012
A10: 210100 | B10: 2000-07-01 | C10: 2012-11-21 | D10: -- | E10: -0.0066 | F10: -0.0014 | G10: 4949.788211 | H10: -0.0043 | I10: 0.0012 | J10: -0.0042 | K10: 0.0011
A11: 210100 | B11: 2000-07-01 | C11: 2013-03-07 | D11: -- | E11: -0.0063 | F11: -0.0013 | G11: 4949.80306 | H11: -0.0041 | I11: 0.0013 | J11: -0.0041 | K11: 0.0012
A12: 210100 | B12: 2000-07-01 | C12: 2013-06-07 | D12: 0.0014 | E12: -0.0053 | F12: -0.0015 | G12: 4949.832758 | H12: -0.0041 | I12: 0.0015 | J12: -0.0041 | K12: 0.0014
A13: 210100 | B13: 2000-07-01 | C13: 2013-09-07 | D13: 0.002 | E13: -0.0058 | F13: -0.0009 | G13: 4949.79811 | H13: -0.004 | I13: 0.0015 | J13: -0.0041 | K13: 0.0016
A14: 210100 | B14: 2000-07-01 | C14: 2013-12-18 | D14: 0.0018 | E14: -0.0052 | F14: -0.0017 | G14: 4949.892155 | H14: -0.0044 | I14: 0.0022 | J14: -0.0044 | K14: 0.0021
A15: 210100 | B15: 2000-07-01 | C15: 2014-03-07 | D15: 0.0019 | E15: -0.0056 | F15: -0.0013 | G15: 4949.867406 | H15: -0.0039 | I15: 0.0019 | J15: -0.004 | K15: 0.0018
A16: 210100 | B16: 2000-07-01 | C16: 2014-09-07 | D16: 0.0017 | E16: -0.0055 | F16: -0.0009 | G16: 4949.842657 | H16: -0.0034 | I16: 0.0017 | J16: -0.0035 | K16: 0.0015
A17: 210100 | B17: 2000-07-01 | C17: 2015-03-07 | D17: 0.0018 | E17: -0.0066 | F17: -0.0005 | G17: 4949.79811 | H17: -0.0036 | I17: 0.002 | J17: -0.0037 | K17: 0.0019
A18: 210100 | B18: 2000-07-01 | C18: 2015-09-07 | D18: 0.0022 | E18: -0.0066 | F18: -0.001 | G18: 4949.907004 | H18: -0.0032 | I18: 0.0017 | J18: -0.0034 | K18: 0.0016
A19: 210100 | B19: 2000-07-01 | C19: 2016-03-01 | D19: 0.0022 | E19: -0.0068 | F19: -0.0008 | G19: 4949.887205 | H19: -0.003 | I19: 0.0015 | J19: -0.003 | K19: 0.0013
A20: 210100 | B20: 2000-07-01 | C20: 2016-09-07 | D20: 0.0018 | E20: -0.0069 | F20: -0.0008 | G20: 4949.907004 | H20: -0.0034 | I20: 0.0019 | J20: -0.0033 | K20: 0.0015
A21: 210100 | B21: 2000-07-01 | C21: 2017-03-07 | D21: 0.0022 | E21: -0.0072 | F21: -0.0007 | G21: 4949.902054 | H21: -0.0033 | I21: 0.0016 | J21: -0.0034 | K21: 0.0015
A22: 210100 | B22: 2000-07-01 | C22: 2017-09-07 | D22: 0.0021 | E22: -0.0072 | F22: -0.0011 | G22: 4950.030747 | H22: -0.0035 | I22: 0.0015 | J22: -0.0034 | K22: 0.0015
A23: 210100 | B23: 2000-07-01 | C23: 2018-03-01 | D23: 0.0021 | E23: -0.0072 | F23: -0.0011 | G23: 4950.060445 | H23: -0.0039 | I23: 0.0016 | J23: -0.0037 | K23: 0.0016
A24: Quando uma taxa for interpolada será apresentada em negrito.

Sheet LFT (QuantLibXL)
E2: Evaluation Date | F2: ='LFT (Anbima)'!K1 -> 2011-11-11
E3: Set Evaluation Date | F3: =_xll.qlSettingsSetEvaluationDate(F2) -> TRUE
E5: ZeroRateBond | F5: =_xll.qlZeroCouponBond(,F8,F9,F10,F16,F11,F12,F13,F14,F15) -> obj_00008#0008 | G5: =_xll.qlZeroCouponBond(,G8,G9,G10,G16,G11,G12,G13,G14,G15) -> obj_00004#0007 | H5: =_xll.qlZeroCouponBond(,H8,H9,H10,H16,H11,H12,H13,H14,H15) -> obj_00000#0007 | I5: =_xll.qlZeroCouponBond(,I8,I9,I10,I16,I11,I12,I13,I14,I15) -> obj_00009#0007 | J5: =_xll.qlZeroCouponBond(,J8,J9,J10,J16,J11,J12,J13,J14,J15) -> obj_0000b#0007 | K5: =_xll.qlZeroCouponBond(,K8,K9,K10,K16,K11,K12,K13,K14,K15) -> obj_00010#0007 | L5: =_xll.qlZeroCouponBond(,L8,L9,L10,L16,L11,L12,L13,L14,L15) -> obj_00002#0007 | M5: =_xll.qlZeroCouponBond(,M8,M9,M10,M16,M11,M12,M13,M14,M15) -> obj_00011#0007 | N5: =_xll.qlZeroCouponBond(,N8,N9,N10,N16,N11,N12,N13,N14,N15) -> obj_0000c#0007 | O5: =_xll.qlZeroCouponBond(,O8,O9,O10,O16,O11,O12,O13,O14,O15) -> obj_0000d#0007 | P5: =_xll.qlZeroCouponBond(,P8,P9,P10,P16,P11,P12,P13,P14,P15) -> obj_0000e#0007 | Q5: =_xll.qlZeroCouponBond(,Q8,Q9,Q10,Q16,Q11,Q12,Q13,Q14,Q15) -> obj_00001#0007 | R5: =_xll.qlZeroCouponBond(,R8,R9,R10,R16,R11,R12,R13,R14,R15) -> obj_0000f#0007 | S5: =_xll.qlZeroCouponBond(,S8,S9,S10,S16,S11,S12,S13,S14,S15) -> obj_00006#0007 | T5: =_xll.qlZeroCouponBond(,T8,T9,T10,T16,T11,T12,T13,T14,T15) -> obj_00003#0007 | U5: =_xll.qlZeroCouponBond(,U8,U9,U10,U16,U11,U12,U13,U14,U15) -> obj_00007#0007 | V5: =_xll.qlZeroCouponBond(,V8,V9,V10,V16,V11,V12,V13,V14,V15) -> obj_00005#0007 | W5: =_xll.qlZeroCouponBond(,W8,W9,W10,W16,W11,W12,W13,W14,W15) -> obj_0000a#0013
E6: Error | F6: =_xll.ohRangeRetrieveError(F5) ->  | G6: =_xll.ohRangeRetrieveError(G5) ->  | H6: =_xll.ohRangeRetrieveError(H5) ->  | I6: =_xll.ohRangeRetrieveError(I5) ->  | J6: =_xll.ohRangeRetrieveError(J5) ->  | K6: =_xll.ohRangeRetrieveError(K5) ->  | L6: =_xll.ohRangeRetrieveError(L5) ->  | M6: =_xll.ohRangeRetrieveError(M5) ->  | N6: =_xll.ohRangeRetrieveError(N5) ->  | O6: =_xll.ohRangeRetrieveError(O5) ->  | P6: =_xll.ohRangeRetrieveError(P5) ->  | Q6: =_xll.ohRangeRetrieveError(Q5) ->  | R6: =_xll.ohRangeRetrieveError(R5) ->  | S6: =_xll.ohRangeRetrieveError(S5) ->  | T6: =_xll.ohRangeRetrieveError(T5) ->  | U6: =_xll.ohRangeRetrieveError(U5) ->  | V6: =_xll.ohRangeRetrieveError(V5) ->  | W6: =_xll.ohRangeRetrieveError(W5) -> 
E7: ObjectID
E8: Description | F8: LFT | G8: LFT | H8: LFT | I8: LFT | J8: LFT | K8: LFT | L8: LFT | M8: LFT | N8: LFT | O8: LFT | P8: LFT | Q8: LFT | R8: LFT | S8: LFT | T8: LFT | U8: LFT | V8: LFT | W8: LFT
E9: Currency | F9: BRL | G9: BRL | H9: BRL | I9: BRL | J9: BRL | K9: BRL | L9: BRL | M9: BRL | N9: BRL | O9: BRL | P9: BRL | Q9: BRL | R9: BRL | S9: BRL | T9: BRL | U9: BRL | V9: BRL | W9: BRL
E10: SettlementDays | F10: 0 | G10: 0 | H10: 0 | I10: 0 | J10: 0 | K10: 0 | L10: 0 | M10: 0 | N10: 0 | O10: 0 | P10: 0 | Q10: 0 | R10: 0 | S10: 0 | T10: 0 | U10: 0 | V10: 0 | W10: 0
E11: FaceAmount | F11: 4949.718915 | G11: 4949.718915 | H11: 4949.718915 | I11: 4949.718915 | J11: 4949.718915 | K11: 4949.718915 | L11: 4949.718915 | M11: 4949.718915 | N11: 4949.718915 | O11: 4949.718915 | P11: 4949.718915 | Q11: 4949.718915 | R11: 4949.718915 | S11: 4949.718915 | T11: 4949.718915 | U11: 4949.718915 | V11: 4949.718915 | W11: 4949.718915
E12: TerminationDate | F12: =TRANSPOSE('LFT (Anbima)'!$C$6:$C$23) -> 2011-11-16 | G12: 2011-12-21 | H12: 2012-03-07 | I12: 2012-09-07 | J12: 2012-11-21 | K12: 2013-03-07 | L12: 2013-06-07 | M12: 2013-09-07 | N12: 2013-12-18 | O12: 2014-03-07 | P12: 2014-09-07 | Q12: 2015-03-07 | R12: 2015-09-07 | S12: 2016-03-01 | T12: 2016-09-07 | U12: 2017-03-07 | V12: 2017-09-07 | W12: 2018-03-01
E13: PaymentBDC | F13: Following | G13: Following | H13: Following | I13: Following | J13: Following | K13: Following | L13: Following | M13: Following | N13: Following | O13: Following | P13: Following | Q13: Following | R13: Following | S13: Following | T13: Following | U13: Following | V13: Following | W13: Following
E14: Redemption | F14: 100 | G14: 100 | H14: 100 | I14: 100 | J14: 100 | K14: 100 | L14: 100 | M14: 100 | N14: 100 | O14: 100 | P14: 100 | Q14: 100 | R14: 100 | S14: 100 | T14: 100 | U14: 100 | V14: 100 | W14: 100
E15: IssueDate | F15: =TRANSPOSE('LFT (Anbima)'!$B$6:$B$23) -> 2000-07-01 | G15: 2000-07-01 | H15: 2000-07-01 | I15: 2000-07-01 | J15: 2000-07-01 | K15: 2000-07-01 | L15: 2000-07-01 | M15: 2000-07-01 | N15: 2000-07-01 | O15: 2000-07-01 | P15: 2000-07-01 | Q15: 2000-07-01 | R15: 2000-07-01 | S15: 2000-07-01 | T15: 2000-07-01 | U15: 2000-07-01 | V15: 2000-07-01 | W15: 2000-07-01
E16: Calendar | F16: Brazil::Settlement | G16: Brazil::Settlement | H16: Brazil::Settlement | I16: Brazil::Settlement | J16: Brazil::Settlement | K16: Brazil::Settlement | L16: Brazil::Settlement | M16: Brazil::Settlement | N16: Brazil::Settlement | O16: Brazil::Settlement | P16: Brazil::Settlement | Q16: Brazil::Settlement | R16: Brazil::Settlement | S16: Brazil::Settlement | T16: Brazil::Settlement | U16: Brazil::Settlement | V16: Brazil::Settlement | W16: Brazil::Settlement
E17: Permanent
E19: Rate | F19: =TRANSPOSE('LFT (Anbima)'!$F$6:$F$23)/100 -> -2.1e-05 | G19: -1.9e-05 | H19: -1.5e-05 | I19: -1.4e-05 | J19: -1.4e-05 | K19: -1.3e-05 | L19: -1.5e-05 | M19: -9e-06 | N19: -1.7e-05 | O19: -1.3e-05 | P19: -9e-06 | Q19: -5e-06 | R19: -1e-05 | S19: -8e-06 | T19: -8e-06 | U19: -7e-06 | V19: -1.1e-05 | W19: -1.1e-05
E20: DayCounter | F20: Business252 | G20: Business252 | H20: Business252 | I20: Business252 | J20: Business252 | K20: Business252 | L20: Business252 | M20: Business252 | N20: Business252 | O20: Business252 | P20: Business252 | Q20: Business252 | R20: Business252 | S20: Business252 | T20: Business252 | U20: Business252 | V20: Business252 | W20: Business252
E21: Compounding | F21: Compounded | G21: Compounded | H21: Compounded | I21: Compounded | J21: Compounded | K21: Compounded | L21: Compounded | M21: Compounded | N21: Compounded | O21: Compounded | P21: Compounded | Q21: Compounded | R21: Compounded | S21: Compounded | T21: Compounded | U21: Compounded | V21: Compounded | W21: Compounded
E22: Frequency | F22: Annual | G22: Annual | H22: Annual | I22: Annual | J22: Annual | K22: Annual | L22: Annual | M22: Annual | N22: Annual | O22: Annual | P22: Annual | Q22: Annual | R22: Annual | S22: Annual | T22: Annual | U22: Annual | V22: Annual | W22: Annual
E24: Clean Price | F24: =_xll.qlBondCleanPriceFromYield(F5,F19,F20,F21,F22,$F$2) -> 100.0000167 | G24: =_xll.qlBondCleanPriceFromYield(G5,G19,G20,G21,G22,$F$2) -> 100.0002036 | H24: =_xll.qlBondCleanPriceFromYield(H5,H19,H20,H21,H22,$F$2) -> 100.0004762 | I24: =_xll.qlBondCleanPriceFromYield(I5,I19,I20,I21,I22,$F$2) -> 100.0011611 | J24: =_xll.qlBondCleanPriceFromYield(J5,J19,J20,J21,J22,$F$2) -> 100.0014334 | K24: =_xll.qlBondCleanPriceFromYield(K5,K19,K20,K21,K22,$F$2) -> 100.0017024 | L24: =_xll.qlBondCleanPriceFromYield(L5,L19,L20,L21,L22,$F$2) -> 100.0023393 | M24: =_xll.qlBondCleanPriceFromYield(M5,M19,M20,M21,M22,$F$2) -> 100.0016393 | N24: =_xll.qlBondCleanPriceFromYield(N5,N19,N20,N21,N22,$F$2) -> 100.0035755 | O24: =_xll.qlBondCleanPriceFromYield(O5,O19,O20,O21,O22,$F$2) -> 100.0030076 | P24: =_xll.qlBondCleanPriceFromYield(P5,P19,P20,P21,P22,$F$2) -> 100.0025358 | Q24: =_xll.qlBondCleanPriceFromYield(Q5,Q19,Q20,Q21,Q22,$F$2) -> 100.0016587 | R24: =_xll.qlBondCleanPriceFromYield(R5,R19,R20,R21,R22,$F$2) -> 100.0038176 | S24: =_xll.qlBondCleanPriceFromYield(S5,S19,S20,S21,S22,$F$2) -> 100.0034318 | T24: =_xll.qlBondCleanPriceFromYield(T5,T19,T20,T21,T22,$F$2) -> 100.0038541 | U24: =_xll.qlBondCleanPriceFromYield(U5,U19,U20,U21,U22,$F$2) -> 100.003714 | V24: =_xll.qlBondCleanPriceFromYield(V5,V19,V20,V21,V22,$F$2) -> 100.0063951 | W24: =_xll.qlBondCleanPriceFromYield(W5,W19,W20,W21,W22,$F$2) -> 100.0069058
E25: BondHelper | F25: =_xll.qlBondHelper(,F24,F5) -> obj_0002e#0013 | G25: =_xll.qlBondHelper(,G24,G5) -> obj_0002f#0007 | H25: =_xll.qlBondHelper(,H24,H5) -> obj_00030#0007 | I25: =_xll.qlBondHelper(,I24,I5) -> obj_0002d#0007 | J25: =_xll.qlBondHelper(,J24,J5) -> obj_0002c#0007 | K25: =_xll.qlBondHelper(,K24,K5) -> obj_00028#0007 | L25: =_xll.qlBondHelper(,L24,L5) -> obj_0002b#0007 | M25: =_xll.qlBondHelper(,M24,M5) -> obj_00029#0007 | N25: =_xll.qlBondHelper(,N24,N5) -> obj_0001b#0007 | O25: =_xll.qlBondHelper(,O24,O5) -> obj_00022#0007 | P25: =_xll.qlBondHelper(,P24,P5) -> obj_00023#0007 | Q25: =_xll.qlBondHelper(,Q24,Q5) -> obj_0001e#0007 | R25: =_xll.qlBondHelper(,R24,R5) -> obj_00020#0007 | S25: =_xll.qlBondHelper(,S24,S5) -> obj_00027#0007 | T25: =_xll.qlBondHelper(,T24,T5) -> obj_00021#0007 | U25: =_xll.qlBondHelper(,U24,U5) -> obj_0001d#0007 | V25: =_xll.qlBondHelper(,V24,V5) -> obj_00025#0007 | W25: =_xll.qlBondHelper(,W24,W5) -> obj_0001f#0007
E27: Yield Curve | F27: =_xll.qlPiecewiseYieldCurve(,,F29,F25:W25,F30,,,,F31,F32) -> obj_00099#0018
E28: Error | F28: =_xll.ohRangeRetrieveError(F27) -> 
E29: Calendar | F29: Brazil::Settlement
E30: DayCounter | F30: Business252
F31: Discount
E32: Interpolator | F32: LogLinear
E34: DayCounter | F34: Business252
E35: Compounding | F35: Compounded
E36: Frequency | F36: Annual
E37: =_xll.qlPiecewiseYieldCurveDates(F27) -> 2011-11-11 | F37: =_xll.qlYieldTSZeroRate($F$27,E37,$F$34,$F$35,$F$36) -> -2.100000108e-05
E38: 2011-11-16 | F38: =_xll.qlYieldTSZeroRate($F$27,E38,$F$34,$F$35,$F$36) -> -2.100000001e-05
E39: 2011-12-21 | F39: =_xll.qlYieldTSZeroRate($F$27,E39,$F$34,$F$35,$F$36) -> -1.9e-05
E40: 2012-03-07 | F40: =_xll.qlYieldTSZeroRate($F$27,E40,$F$34,$F$35,$F$36) -> -1.5e-05
E41: 2012-09-10 | F41: =_xll.qlYieldTSZeroRate($F$27,E41,$F$34,$F$35,$F$36) -> -1.4e-05
E42: 2012-11-21 | F42: =_xll.qlYieldTSZeroRate($F$27,E42,$F$34,$F$35,$F$36) -> -1.4e-05
E43: 2013-03-07 | F43: =_xll.qlYieldTSZeroRate($F$27,E43,$F$34,$F$35,$F$36) -> -1.3e-05
E44: 2013-06-07 | F44: =_xll.qlYieldTSZeroRate($F$27,E44,$F$34,$F$35,$F$36) -> -1.500000032e-05
E45: 2013-09-09 | F45: =_xll.qlYieldTSZeroRate($F$27,E45,$F$34,$F$35,$F$36) -> -8.999999725e-06
E46: 2013-12-18 | F46: =_xll.qlYieldTSZeroRate($F$27,E46,$F$34,$F$35,$F$36) -> -1.7e-05
E47: 2014-03-07 | F47: =_xll.qlYieldTSZeroRate($F$27,E47,$F$34,$F$35,$F$36) -> -1.3e-05
E48: 2014-09-08 | F48: =_xll.qlYieldTSZeroRate($F$27,E48,$F$34,$F$35,$F$36) -> -8.999999823e-06
E49: 2015-03-09 | F49: =_xll.qlYieldTSZeroRate($F$27,E49,$F$34,$F$35,$F$36) -> -5e-06
E50: 2015-09-08 | F50: =_xll.qlYieldTSZeroRate($F$27,E50,$F$34,$F$35,$F$36) -> -1e-05
E51: 2016-03-01 | F51: =_xll.qlYieldTSZeroRate($F$27,E51,$F$34,$F$35,$F$36) -> -8e-06
E52: 2016-09-08 | F52: =_xll.qlYieldTSZeroRate($F$27,E52,$F$34,$F$35,$F$36) -> -8.000000104e-06
E53: 2017-03-07 | F53: =_xll.qlYieldTSZeroRate($F$27,E53,$F$34,$F$35,$F$36) -> -7.000000094e-06
E54: 2017-09-08 | F54: =_xll.qlYieldTSZeroRate($F$27,E54,$F$34,$F$35,$F$36) -> -1.1e-05
E55: 2018-03-01 | F55: =_xll.qlYieldTSZeroRate($F$27,E55,$F$34,$F$35,$F$36) -> -1.1e-05
B57: Price Test from YTM | E57: Yield | F57: =TRANSPOSE('LFT (Anbima)'!$F$6:$F$23)/100 -> -2.1e-05 | G57: -1.9e-05 | H57: -1.5e-05 | I57: -1.4e-05 | J57: -1.4e-05 | K57: -1.3e-05 | L57: -1.5e-05 | M57: -9e-06 | N57: -1.7e-05 | O57: -1.3e-05 | P57: -9e-06 | Q57: -5e-06 | R57: -1e-05 | S57: -8e-06 | T57: -8e-06 | U57: -7e-06 | V57: -1.1e-05 | W57: -1.1e-05
E58: Clean Price | F58: =_xll.qlBondCleanPriceFromYield(F5,F19,F20,F21,F22,$F$2) -> 100.0000167 | G58: =_xll.qlBondCleanPriceFromYield(G5,G19,G20,G21,G22,$F$2) -> 100.0002036 | H58: =_xll.qlBondCleanPriceFromYield(H5,H19,H20,H21,H22,$F$2) -> 100.0004762 | I58: =_xll.qlBondCleanPriceFromYield(I5,I19,I20,I21,I22,$F$2) -> 100.0011611 | J58: =_xll.qlBondCleanPriceFromYield(J5,J19,J20,J21,J22,$F$2) -> 100.0014334 | K58: =_xll.qlBondCleanPriceFromYield(K5,K19,K20,K21,K22,$F$2) -> 100.0017024 | L58: =_xll.qlBondCleanPriceFromYield(L5,L19,L20,L21,L22,$F$2) -> 100.0023393 | M58: =_xll.qlBondCleanPriceFromYield(M5,M19,M20,M21,M22,$F$2) -> 100.0016393 | N58: =_xll.qlBondCleanPriceFromYield(N5,N19,N20,N21,N22,$F$2) -> 100.0035755 | O58: =_xll.qlBondCleanPriceFromYield(O5,O19,O20,O21,O22,$F$2) -> 100.0030076 | P58: =_xll.qlBondCleanPriceFromYield(P5,P19,P20,P21,P22,$F$2) -> 100.0025358 | Q58: =_xll.qlBondCleanPriceFromYield(Q5,Q19,Q20,Q21,Q22,$F$2) -> 100.0016587 | R58: =_xll.qlBondCleanPriceFromYield(R5,R19,R20,R21,R22,$F$2) -> 100.0038176 | S58: =_xll.qlBondCleanPriceFromYield(S5,S19,S20,S21,S22,$F$2) -> 100.0034318 | T58: =_xll.qlBondCleanPriceFromYield(T5,T19,T20,T21,T22,$F$2) -> 100.0038541 | U58: =_xll.qlBondCleanPriceFromYield(U5,U19,U20,U21,U22,$F$2) -> 100.003714 | V58: =_xll.qlBondCleanPriceFromYield(V5,V19,V20,V21,V22,$F$2) -> 100.0063951 | W58: =_xll.qlBondCleanPriceFromYield(W5,W19,W20,W21,W22,$F$2) -> 100.0069058
E59: Accrued Amount | F59: =_xll.qlBondAccruedAmount(F$5) -> 0 | G59: =_xll.qlBondAccruedAmount(G5) -> 0 | H59: =_xll.qlBondAccruedAmount(H5) -> 0 | I59: =_xll.qlBondAccruedAmount(I5) -> 0 | J59: =_xll.qlBondAccruedAmount(J5) -> 0 | K59: =_xll.qlBondAccruedAmount(K5) -> 0 | L59: =_xll.qlBondAccruedAmount(L5) -> 0 | M59: =_xll.qlBondAccruedAmount(M5) -> 0 | N59: =_xll.qlBondAccruedAmount(N5) -> 0 | O59: =_xll.qlBondAccruedAmount(O5) -> 0 | P59: =_xll.qlBondAccruedAmount(P5) -> 0 | Q59: =_xll.qlBondAccruedAmount(Q5) -> 0 | R59: =_xll.qlBondAccruedAmount(R5) -> 0 | S59: =_xll.qlBondAccruedAmount(S5) -> 0 | T59: =_xll.qlBondAccruedAmount(T5) -> 0 | U59: =_xll.qlBondAccruedAmount(U5) -> 0 | V59: =_xll.qlBondAccruedAmount(V5) -> 0 | W59: =_xll.qlBondAccruedAmount(W5) -> 0
E60: Anbima | F60: =TRANSPOSE('LFT (Anbima)'!$G$6:$G$23) -> 4949.718915 | G60: 4949.728814 | H60: 4949.738713 | I60: 4949.773361 | J60: 4949.788211 | K60: 4949.80306 | L60: 4949.832758 | M60: 4949.79811 | N60: 4949.892155 | O60: 4949.867406 | P60: 4949.842657 | Q60: 4949.79811 | R60: 4949.907004 | S60: 4949.887205 | T60: 4949.907004 | U60: 4949.902054 | V60: 4950.030747 | W60: 4950.060445
E61: QuantLibXL | F61: =(F58+F59)*(_xll.qlBondNotional(F$5)/100) -> 4949.71974 | G61: =(G58+G59)*(_xll.qlBondNotional(G$5)/100) -> 4949.728991 | H61: =(H58+H59)*(_xll.qlBondNotional(H$5)/100) -> 4949.742485 | I61: =(I58+I59)*(_xll.qlBondNotional(I$5)/100) -> 4949.776387 | J61: =(J58+J59)*(_xll.qlBondNotional(J$5)/100) -> 4949.789862 | K61: =(K58+K59)*(_xll.qlBondNotional(K$5)/100) -> 4949.803179 | L61: =(L58+L59)*(_xll.qlBondNotional(L$5)/100) -> 4949.834705 | M61: =(M58+M59)*(_xll.qlBondNotional(M$5)/100) -> 4949.800056 | N61: =(N58+N59)*(_xll.qlBondNotional(N$5)/100) -> 4949.895892 | O61: =(O58+O59)*(_xll.qlBondNotional(O$5)/100) -> 4949.867783 | P61: =(P58+P59)*(_xll.qlBondNotional(P$5)/100) -> 4949.844428 | Q61: =(Q58+Q59)*(_xll.qlBondNotional(Q$5)/100) -> 4949.801018 | R61: =(R58+R59)*(_xll.qlBondNotional(R$5)/100) -> 4949.907873 | S61: =(S58+S59)*(_xll.qlBondNotional(S$5)/100) -> 4949.88878 | T61: =(T58+T59)*(_xll.qlBondNotional(T$5)/100) -> 4949.90968 | U61: =(U58+U59)*(_xll.qlBondNotional(U$5)/100) -> 4949.902746 | V61: =(V58+V59)*(_xll.qlBondNotional(V$5)/100) -> 4950.035454 | W61: =(W58+W59)*(_xll.qlBondNotional(W$5)/100) -> 4950.060734
E62: Test | F62: =F61-F60 -> 0.0008249618832 | G62: 0.0001773194872 | H62: 0.00377232297 | I62: 0.003026472258 | J62: 0.001650976196 | K62: 0.0001193369735 | L62: 0.001947290233 | M62: 0.001946065273 | N62: 0.003736761053 | O62: 0.0003769668074 | P62: 0.001770885757 | Q62: 0.00290836661 | R62: 0.0008691068751 | S62: 0.001575376568 | T62: 0.002676034695 | U62: 0.0006921178456 | V62: 0.004706529844 | W62: 0.000289271652
B64: Price Test from Yield Curve | E64: Clean Price | F64: =_xll.qlBondCleanPriceFromYieldTermStructure(F5,$F$27,$F$2) -> 100.0000167 | G64: =_xll.qlBondCleanPriceFromYieldTermStructure(G5,$F$27,$F$2) -> 100.0002036 | H64: =_xll.qlBondCleanPriceFromYieldTermStructure(H5,$F$27,$F$2) -> 100.0004762 | I64: =_xll.qlBondCleanPriceFromYieldTermStructure(I5,$F$27,$F$2) -> 100.0011611 | J64: =_xll.qlBondCleanPriceFromYieldTermStructure(J5,$F$27,$F$2) -> 100.0014334 | K64: =_xll.qlBondCleanPriceFromYieldTermStructure(K5,$F$27,$F$2) -> 100.0017024 | L64: =_xll.qlBondCleanPriceFromYieldTermStructure(L5,$F$27,$F$2) -> 100.0023393 | M64: =_xll.qlBondCleanPriceFromYieldTermStructure(M5,$F$27,$F$2) -> 100.0016393 | N64: =_xll.qlBondCleanPriceFromYieldTermStructure(N5,$F$27,$F$2) -> 100.0035755 | O64: =_xll.qlBondCleanPriceFromYieldTermStructure(O5,$F$27,$F$2) -> 100.0030076 | P64: =_xll.qlBondCleanPriceFromYieldTermStructure(P5,$F$27,$F$2) -> 100.0025358 | Q64: =_xll.qlBondCleanPriceFromYieldTermStructure(Q5,$F$27,$F$2) -> 100.0016587 | R64: =_xll.qlBondCleanPriceFromYieldTermStructure(R5,$F$27,$F$2) -> 100.0038176 | S64: =_xll.qlBondCleanPriceFromYieldTermStructure(S5,$F$27,$F$2) -> 100.0034318 | T64: =_xll.qlBondCleanPriceFromYieldTermStructure(T5,$F$27,$F$2) -> 100.0038541 | U64: =_xll.qlBondCleanPriceFromYieldTermStructure(U5,$F$27,$F$2) -> 100.003714 | V64: =_xll.qlBondCleanPriceFromYieldTermStructure(V5,$F$27,$F$2) -> 100.0063951 | W64: =_xll.qlBondCleanPriceFromYieldTermStructure(W5,$F$27,$F$2) -> 100.0069058
E65: Accrued Amount | F65: =_xll.qlBondAccruedAmount(F5) -> 0 | G65: =_xll.qlBondAccruedAmount(G5) -> 0 | H65: =_xll.qlBondAccruedAmount(H5) -> 0 | I65: =_xll.qlBondAccruedAmount(I5) -> 0 | J65: =_xll.qlBondAccruedAmount(J5) -> 0 | K65: =_xll.qlBondAccruedAmount(K5) -> 0 | L65: =_xll.qlBondAccruedAmount(L5) -> 0 | M65: =_xll.qlBondAccruedAmount(M5) -> 0 | N65: =_xll.qlBondAccruedAmount(N5) -> 0 | O65: =_xll.qlBondAccruedAmount(O5) -> 0 | P65: =_xll.qlBondAccruedAmount(P5) -> 0 | Q65: =_xll.qlBondAccruedAmount(Q5) -> 0 | R65: =_xll.qlBondAccruedAmount(R5) -> 0 | S65: =_xll.qlBondAccruedAmount(S5) -> 0 | T65: =_xll.qlBondAccruedAmount(T5) -> 0 | U65: =_xll.qlBondAccruedAmount(U5) -> 0 | V65: =_xll.qlBondAccruedAmount(V5) -> 0 | W65: =_xll.qlBondAccruedAmount(W5) -> 0
E66: Anbima | F66: =TRANSPOSE('LFT (Anbima)'!G6:G23) -> 4949.718915 | G66: 4949.728814 | H66: 4949.738713 | I66: 4949.773361 | J66: 4949.788211 | K66: 4949.80306 | L66: 4949.832758 | M66: 4949.79811 | N66: 4949.892155 | O66: 4949.867406 | P66: 4949.842657 | Q66: 4949.79811 | R66: 4949.907004 | S66: 4949.887205 | T66: 4949.907004 | U66: 4949.902054 | V66: 4950.030747 | W66: 4950.060445
E67: QuantLibXL | F67: =(F64+F65)*(_xll.qlBondNotional(F$5)/100) -> 4949.71974 | G67: =(G64+G65)*(_xll.qlBondNotional(G$5)/100) -> 4949.728991 | H67: =(H64+H65)*(_xll.qlBondNotional(H$5)/100) -> 4949.742485 | I67: =(I64+I65)*(_xll.qlBondNotional(I$5)/100) -> 4949.776387 | J67: =(J64+J65)*(_xll.qlBondNotional(J$5)/100) -> 4949.789862 | K67: =(K64+K65)*(_xll.qlBondNotional(K$5)/100) -> 4949.803179 | L67: =(L64+L65)*(_xll.qlBondNotional(L$5)/100) -> 4949.834705 | M67: =(M64+M65)*(_xll.qlBondNotional(M$5)/100) -> 4949.800056 | N67: =(N64+N65)*(_xll.qlBondNotional(N$5)/100) -> 4949.895892 | O67: =(O64+O65)*(_xll.qlBondNotional(O$5)/100) -> 4949.867783 | P67: =(P64+P65)*(_xll.qlBondNotional(P$5)/100) -> 4949.844428 | Q67: =(Q64+Q65)*(_xll.qlBondNotional(Q$5)/100) -> 4949.801018 | R67: =(R64+R65)*(_xll.qlBondNotional(R$5)/100) -> 4949.907873 | S67: =(S64+S65)*(_xll.qlBondNotional(S$5)/100) -> 4949.88878 | T67: =(T64+T65)*(_xll.qlBondNotional(T$5)/100) -> 4949.90968 | U67: =(U64+U65)*(_xll.qlBondNotional(U$5)/100) -> 4949.902746 | V67: =(V64+V65)*(_xll.qlBondNotional(V$5)/100) -> 4950.035454 | W67: =(W64+W65)*(_xll.qlBondNotional(W$5)/100) -> 4950.060734
E68: Test | F68: =F67-F66 -> 0.0008249618832 | G68: 0.0001773194872 | H68: 0.00377232297 | I68: 0.003026472258 | J68: 0.001650976196 | K68: 0.0001193369735 | L68: 0.00194729271 | M68: 0.001946062796 | N68: 0.003736761053 | O68: 0.0003769668074 | P68: 0.001770883281 | Q68: 0.00290836661 | R68: 0.0008691068751 | S68: 0.001575376568 | T68: 0.002676037171 | U68: 0.0006921203221 | V68: 0.004706529844 | W68: 0.000289271652
B70: Yield Test From Anbima Price | E70: Anbima | F70: =TRANSPOSE('LFT (Anbima)'!$G$6:$G$23) -> 4949.718915 | G70: 4949.728814 | H70: 4949.738713 | I70: 4949.773361 | J70: 4949.788211 | K70: 4949.80306 | L70: 4949.832758 | M70: 4949.79811 | N70: 4949.892155 | O70: 4949.867406 | P70: 4949.842657 | Q70: 4949.79811 | R70: 4949.907004 | S70: 4949.887205 | T70: 4949.907004 | U70: 4949.902054 | V70: 4950.030747 | W70: 4950.060445
E71: Accrued Amount | F71: =_xll.qlBondAccruedAmount(F$5) -> 0 | G71: =_xll.qlBondAccruedAmount(G$5) -> 0 | H71: =_xll.qlBondAccruedAmount(H$5) -> 0 | I71: =_xll.qlBondAccruedAmount(I$5) -> 0 | J71: =_xll.qlBondAccruedAmount(J$5) -> 0 | K71: =_xll.qlBondAccruedAmount(K$5) -> 0 | L71: =_xll.qlBondAccruedAmount(L$5) -> 0 | M71: =_xll.qlBondAccruedAmount(M$5) -> 0 | N71: =_xll.qlBondAccruedAmount(N$5) -> 0 | O71: =_xll.qlBondAccruedAmount(O$5) -> 0 | P71: =_xll.qlBondAccruedAmount(P$5) -> 0 | Q71: =_xll.qlBondAccruedAmount(Q$5) -> 0 | R71: =_xll.qlBondAccruedAmount(R$5) -> 0 | S71: =_xll.qlBondAccruedAmount(S$5) -> 0 | T71: =_xll.qlBondAccruedAmount(T$5) -> 0 | U71: =_xll.qlBondAccruedAmount(U$5) -> 0 | V71: =_xll.qlBondAccruedAmount(V$5) -> 0 | W71: =_xll.qlBondAccruedAmount(W$5) -> 0
E72: Clean Price | F72: =F70/(_xll.qlBondNotional(F5)/100)-F71 -> 100 | G72: =G70/(_xll.qlBondNotional(G5)/100)-G71 -> 100.0002 | H72: =H70/(_xll.qlBondNotional(H5)/100)-H71 -> 100.0004 | I72: =I70/(_xll.qlBondNotional(I5)/100)-I71 -> 100.0011 | J72: =J70/(_xll.qlBondNotional(J5)/100)-J71 -> 100.0014 | K72: =K70/(_xll.qlBondNotional(K5)/100)-K71 -> 100.0017 | L72: =L70/(_xll.qlBondNotional(L5)/100)-L71 -> 100.0023 | M72: =M70/(_xll.qlBondNotional(M5)/100)-M71 -> 100.0016 | N72: =N70/(_xll.qlBondNotional(N5)/100)-N71 -> 100.0035 | O72: =O70/(_xll.qlBondNotional(O5)/100)-O71 -> 100.003 | P72: =P70/(_xll.qlBondNotional(P5)/100)-P71 -> 100.0025 | Q72: =Q70/(_xll.qlBondNotional(Q5)/100)-Q71 -> 100.0016 | R72: =R70/(_xll.qlBondNotional(R5)/100)-R71 -> 100.0038 | S72: =S70/(_xll.qlBondNotional(S5)/100)-S71 -> 100.0034 | T72: =T70/(_xll.qlBondNotional(T5)/100)-T71 -> 100.0038 | U72: =U70/(_xll.qlBondNotional(U5)/100)-U71 -> 100.0037 | V72: =V70/(_xll.qlBondNotional(V5)/100)-V71 -> 100.0063 | W72: =W70/(_xll.qlBondNotional(W5)/100)-W71 -> 100.0069
E73: Yield | F73: =TRANSPOSE('LFT (Anbima)'!$F$6:$F$23)/100 -> -2.1e-05 | G73: -1.9e-05 | H73: -1.5e-05 | I73: -1.4e-05 | J73: -1.4e-05 | K73: -1.3e-05 | L73: -1.5e-05 | M73: -9e-06 | N73: -1.7e-05 | O73: -1.3e-05 | P73: -9e-06 | Q73: -5e-06 | R73: -1e-05 | S73: -8e-06 | T73: -8e-06 | U73: -7e-06 | V73: -1.1e-05 | W73: -1.1e-05
E74: QuantLibXL | F74: =_xll.qlBondYieldFromCleanPrice(F5,F72,F20,F21,F22,$F$2) -> -4.347410088e-11 | G74: =_xll.qlBondYieldFromCleanPrice(G5,G72,G20,G21,G22,$F$2) -> -1.866569299e-05 | H74: =_xll.qlBondYieldFromCleanPrice(H5,H72,H20,H21,H22,$F$2) -> -1.259936918e-05 | I74: =_xll.qlBondYieldFromCleanPrice(I5,I72,I20,I21,I22,$F$2) -> -1.326280173e-05 | J74: =_xll.qlBondYieldFromCleanPrice(J5,J72,J20,J21,J22,$F$2) -> -1.367415283e-05 | K74: =_xll.qlBondYieldFromCleanPrice(K5,K72,K20,K21,K22,$F$2) -> -1.298158359e-05 | L74: =_xll.qlBondYieldFromCleanPrice(L5,L72,L20,L21,L22,$F$2) -> -1.474779066e-05 | M74: =_xll.qlBondYieldFromCleanPrice(M5,M72,M20,M21,M22,$F$2) -> -8.784100004e-06 | N74: =_xll.qlBondYieldFromCleanPrice(N5,N72,N20,N21,N22,$F$2) -> -1.664102059e-05 | O74: =_xll.qlBondYieldFromCleanPrice(O5,O72,O20,O21,O22,$F$2) -> -1.296701524e-05 | P74: =_xll.qlBondYieldFromCleanPrice(P5,P72,P20,P21,P22,$F$2) -> -8.872983269e-06 | Q74: =_xll.qlBondYieldFromCleanPrice(Q5,Q72,Q20,Q21,Q22,$F$2) -> -4.822820015e-06 | R74: =_xll.qlBondYieldFromCleanPrice(R5,R72,R20,R21,R22,$F$2) -> -9.953987114e-06 | S74: =_xll.qlBondYieldFromCleanPrice(S5,S72,S20,S21,S22,$F$2) -> -7.925877236e-06 | T74: =_xll.qlBondYieldFromCleanPrice(T5,T72,T20,T21,T22,$F$2) -> -7.887737639e-06 | U74: =_xll.qlBondYieldFromCleanPrice(U5,U72,U20,U21,U22,$F$2) -> -6.973696835e-06 | V74: =_xll.qlBondYieldFromCleanPrice(V5,V72,V20,V21,V22,$F$2) -> -1.083638647e-05 | W74: =_xll.qlBondYieldFromCleanPrice(W5,W72,W20,W21,W22,$F$2) -> -1.099063117e-05
E75: Test | F75: =F74-F73 -> 2.099995653e-05 | G75: 3.343070075e-07 | H75: 2.400630824e-06 | I75: 7.371982709e-07 | J75: 3.258471713e-07 | K75: 1.841641221e-08 | L75: 2.522093431e-07 | M75: 2.158999965e-07 | N75: 3.589794115e-07 | O75: 3.298475597e-08 | P75: 1.270167306e-07 | Q75: 1.771799848e-07 | R75: 4.601288591e-08 | S75: 7.412276421e-08 | T75: 1.122623608e-07 | U75: 2.63031647e-08 | V75: 1.63613527e-07 | W75: 9.368829466e-09
B77: Yield Test From Yield Curve | E77: Clean Price | F77: =_xll.qlBondCleanPriceFromYieldTermStructure(F5,$F$27,$F$2) -> 100.0000167 | G77: =_xll.qlBondCleanPriceFromYieldTermStructure(G5,$F$27,$F$2) -> 100.0002036 | H77: =_xll.qlBondCleanPriceFromYieldTermStructure(H5,$F$27,$F$2) -> 100.0004762 | I77: =_xll.qlBondCleanPriceFromYieldTermStructure(I5,$F$27,$F$2) -> 100.0011611 | J77: =_xll.qlBondCleanPriceFromYieldTermStructure(J5,$F$27,$F$2) -> 100.0014334 | K77: =_xll.qlBondCleanPriceFromYieldTermStructure(K5,$F$27,$F$2) -> 100.0017024 | L77: =_xll.qlBondCleanPriceFromYieldTermStructure(L5,$F$27,$F$2) -> 100.0023393 | M77: =_xll.qlBondCleanPriceFromYieldTermStructure(M5,$F$27,$F$2) -> 100.0016393 | N77: =_xll.qlBondCleanPriceFromYieldTermStructure(N5,$F$27,$F$2) -> 100.0035755 | O77: =_xll.qlBondCleanPriceFromYieldTermStructure(O5,$F$27,$F$2) -> 100.0030076 | P77: =_xll.qlBondCleanPriceFromYieldTermStructure(P5,$F$27,$F$2) -> 100.0025358 | Q77: =_xll.qlBondCleanPriceFromYieldTermStructure(Q5,$F$27,$F$2) -> 100.0016587 | R77: =_xll.qlBondCleanPriceFromYieldTermStructure(R5,$F$27,$F$2) -> 100.0038176 | S77: =_xll.qlBondCleanPriceFromYieldTermStructure(S5,$F$27,$F$2) -> 100.0034318 | T77: =_xll.qlBondCleanPriceFromYieldTermStructure(T5,$F$27,$F$2) -> 100.0038541 | U77: =_xll.qlBondCleanPriceFromYieldTermStructure(U5,$F$27,$F$2) -> 100.003714 | V77: =_xll.qlBondCleanPriceFromYieldTermStructure(V5,$F$27,$F$2) -> 100.0063951 | W77: =_xll.qlBondCleanPriceFromYieldTermStructure(W5,$F$27,$F$2) -> 100.0069058
E78: Yield | F78: =TRANSPOSE('LFT (Anbima)'!$F$6:$F$23)/100 -> -2.1e-05 | G78: -1.9e-05 | H78: -1.5e-05 | I78: -1.4e-05 | J78: -1.4e-05 | K78: -1.3e-05 | L78: -1.5e-05 | M78: -9e-06 | N78: -1.7e-05 | O78: -1.3e-05 | P78: -9e-06 | Q78: -5e-06 | R78: -1e-05 | S78: -8e-06 | T78: -8e-06 | U78: -7e-06 | V78: -1.1e-05 | W78: -1.1e-05
E79: QuantLibXL | F79: =_xll.qlBondYieldFromCleanPrice(F5,F77,F20,F21,F22,$F$2) -> -2.100006547e-05 | G79: =_xll.qlBondYieldFromCleanPrice(G5,G77,G20,G21,G22,$F$2) -> -1.899994645e-05 | H79: =_xll.qlBondYieldFromCleanPrice(H5,H77,H20,H21,H22,$F$2) -> -1.50000358e-05 | I79: =_xll.qlBondYieldFromCleanPrice(I5,I77,I20,I21,I22,$F$2) -> -1.400005814e-05 | J79: =_xll.qlBondYieldFromCleanPrice(J5,J77,J20,J21,J22,$F$2) -> -1.400005814e-05 | K79: =_xll.qlBondYieldFromCleanPrice(K5,K77,K20,K21,K22,$F$2) -> -1.300008047e-05 | L79: =_xll.qlBondYieldFromCleanPrice(L5,L77,L20,L21,L22,$F$2) -> -1.50000358e-05 | M79: =_xll.qlBondYieldFromCleanPrice(M5,M77,M20,M21,M22,$F$2) -> -9.000006132e-06 | N79: =_xll.qlBondYieldFromCleanPrice(N5,N77,N20,N21,N22,$F$2) -> -1.699999113e-05 | O79: =_xll.qlBondYieldFromCleanPrice(O5,O77,O20,O21,O22,$F$2) -> -1.300008047e-05 | P79: =_xll.qlBondYieldFromCleanPrice(P5,P77,P20,P21,P22,$F$2) -> -9.000006132e-06 | Q79: =_xll.qlBondYieldFromCleanPrice(Q5,Q77,Q20,Q21,Q22,$F$2) -> -4.99993179e-06 | R79: =_xll.qlBondYieldFromCleanPrice(R5,R77,R20,R21,R22,$F$2) -> -9.999983795e-06 | S79: =_xll.qlBondYieldFromCleanPrice(S5,S77,S20,S21,S22,$F$2) -> -8.000028469e-06 | T79: =_xll.qlBondYieldFromCleanPrice(T5,T77,T20,T21,T22,$F$2) -> -8.000028469e-06 | U79: =_xll.qlBondYieldFromCleanPrice(U5,U77,U20,U21,U22,$F$2) -> -7.000050805e-06 | V79: =_xll.qlBondYieldFromCleanPrice(V5,V77,V20,V21,V22,$F$2) -> -1.099996146e-05 | W79: =_xll.qlBondYieldFromCleanPrice(W5,W77,W20,W21,W22,$F$2) -> -1.099996146e-05
E80: Test | F80: =F79-F78 -> -6.546821478e-11 | G80: 5.354735966e-11 | H80: -3.580000286e-11 | I80: -5.813684349e-11 | J80: -5.813684349e-11 | K80: -8.047368411e-11 | L80: -3.580000286e-11 | M80: -6.131790918e-12 | N80: 8.873678403e-12 | O80: -8.047368411e-11 | P80: -6.131790918e-12 | Q80: 6.821010227e-11 | R80: 1.620504971e-11 | S80: -2.846863155e-11 | T80: -2.846863155e-11 | U80: -5.080547218e-11 | V80: 3.854189034e-11 | W80: 3.854189034e-11
